Workbook

Sheet Sequence of Operation
D1: Sequence of Operation | U1: Version: 2.7.4 | W1: Date: 08/01/17
D4: WORKORDER #: | K4: MODEL #: | N4: TAG #:
E5: CUSTOMER: | L5: PROJECT:
E6: CUSTOMER: | L6: SERIAL #:
E7: EQUIPMENT: | AZ7: =J7 -> 0
E8: ISSUE DATE: | L8: APPROVED:
L9: DATE:
D15: INTRODUCTION
A16: START
A17: INTRO | D17: The ALC controller is turned on by a switch located on its front upper left corner. Several Occupancy Control options are available for starting the unit. These can be selected from the BACview display pad on the Controls screen (requires user password). The Resident Program has an adjustable scheduler that uses the internal time clock to allow for separate Sequences for Occupied and Unoccupied periods. This can be accessed from the BACview display pad on the Schedules screen (requires user password). NOTE: All temperature-related events have an additional 10 second (fixed) “delay on make” to allow temperatures to settle.
A18: INTRO
A19: OM | B19: H | D19: OCCUPIED MODE:
A20: OM | B20: BVOCC | D20: When the BACview Schedule calls for the start of the Occupied Mode, and the ALC controller has verified that there are no fault or shutdown conditions, after a 30-second (fixed) delay the unit goes into Occupied Mode:
A21: OM | B21: BASOCC | D21: When the BAS calls for the start of the Occupied Mode, and the ALC controller has verified that there are no fault or shutdown conditions, after a 30-second (fixed) delay the unit goes into Occupied Mode:
A22: OM | B22: 247OCC | D22: The ALC controller shall operate the unit in Occupied Mode on a 24 hr / 7 day schedule of operation:
A23: OM | B23: SSOCC | D23: When the Start/Stop Switch (Digital Input) calls for the start of the Occupied Mode, and the ALC controller has verified that there are no fault or shutdown conditions, after a 30-second (fixed) delay the unit goes into Occupied Mode:
A24: OM | B24: CO2OCC | D24: When the Carbon Dioxide (CO2) level goes above the CO2 set point 500ppm (adjustable) and the ALC controller has verified that there are no fault or shutdown conditions, after a 30-second (fixed) delay the unit goes into Occupied Mode:
A25: OM
A26: OD | B26: H | D26: 1. | E26: Outdoor Air Damper (OD): | P26: 1
A27: OD | B27: ODBOH | D27: 1. | E27: Outdoor Air Damper (OD - By Others): | P27: 1
A28: OD | B28: ODRDH | D28: 1. | E28: Outdoor Air (OA) Damper and Return Air (RA) Damper: | P28: 1
A29: OD | B29: ODRAH | D29: 1. | E29: Outdoor Air (OA) Damper and Return Air Duct (no damper): | P29: 1
A30: OD | B30: SHTROD2H | D30: 1. | E30: Motorized Shutter and Outdoor Air (OA) Damper: | P30: 1
A31: OD | B31: SHTRNOODH | D31: 1. | E31: Motorized Shutter: | P31: 1
A32: OD | B32: OAAMS | E32: · | F32: The OA Air Monitoring Station (OA-AMS) is included to monitor the OA air flow only.
A33: OD | B33: ZNDPT | E33: · | F33: The Zone Differential Pressure Transmitter (ZN-DPT) is included to monitor the building static pressure only.
A34: OD | B34: ODRD | E34: · | F34: The OA damper is normally closed and the RA damper is normally open.
A35: OD | B35: 100OA | E35: · | F35: After the unit goes into Occupied Mode, the Outdoor Air (OA) damper will open. As the OA damper opens, the Outdoor Air Damper Actuator (OADA) auxiliary switches close.
A36: OD | B36: 100OASHTR | E36: · | F36: After the unit goes into Occupied Mode, the Motorized Shutter will begin to open.
A37: OD | B37: 2POSMIN | E37: · | F37: After the unit goes into Occupied Mode, the Outdoor Air (OA) damper will open fully to provide the minimum OA flow requirement.
A38: OD | B38: MODOD | E38: · | F38: After the unit goes into Occupied Mode, the Outdoor Air (OA) damper will open to the position set during field test and balancing to provide the minimum OA flow requirement.
A39: OD | B39: MODODRD | E39: · | F39: After the unit goes into Occupied Mode, the Outdoor Air (OA) damper will open and the Return Air (RA) damper will close to the position set during field test and balancing to provide the minimum OA flow requirement.
A40: OD | B40: MODDPT | E40: · | F40: After the unit goes into Occupied Mode, the Outdoor Air (OA) damper will open and modulate based upon the Zone Differential Pressure Transmitter (ZN-DPT) set point.
A41: OD | B41: MODRDDPT | E41: · | F41: After the unit goes into Occupied Mode, the OA damper will open and the RA damper will close. Both dampers will modulate based upon the Zone Differential Pressure Transmitter (ZN-DPT) set point.
A42: OD | B42: COMBO | E42: · | F42: After the unit goes into Occupied Mode, the OA damper will open and the RA damper will close. As the OA damper opens, the Outdoor Air Damper Actuator (OADA) auxiliary switches close.
A43: OD | B43: OECON | E43: · | F43: After the unit goes into Occupied Mode, the OA damper will open to the default position of 20% (adjustable) and the RA damper will close 20% (adjustable, open 80%).
A44: OD | B44: RECON | E44: · | F44: After the unit goes into Occupied Mode, the OA damper will open to the default position of 20% (adjustable, max. 20%) and the RA damper will close 20% (adjustable, open 80%).
A45: OD | B45: ECONDPT | E45: · | F45: After the unit goes into Occupied Mode, the OA damper will start at the default position of 0% (adjustable) and the RA damper at 100%. Both dampers will modulate based upon the Zone Differential Pressure Transmitter (ZN-DPT) and the ZN-DPT set point.
A46: OD | B46: ECONCO2 | E46: · | F46: If the Carbon Dioxide (CO2) level rises above the CO2 set point of 1200ppm (adjustable) the dampers will modulate based upon the CO2 set point.
A47: OD | B47: SHUTTER | E47: · | F47: The shutter position is determined by the SF CFM demand and DX Coil Face Velocity. As the face velocity across the exposed coils goes above 125fpm for the surface area of the exposed coils plus the surface area of the next coil, the shutter will open to fully expose the next DX coil. When the coil is exposed the EEV for that coil will be enabled. As the face velocity across the exposed coils goes below 125fpm, the shutter will close to fully cover the topmost exposed DX coil and the EEV for that coil will be disabled.
A48: OD | B48: OD | E48: · | F48: The OA damper stays open until the system reaches the end of the Occupied Mode period. It will remain open until the supply fan turns off. After the supply fan turns off, the OA damper will close.
A49: OD | B49: OD2H | E49: · | F49: Outdoor Air Damper (Circuit #2):
A50: OD | B50: OD2 | F50: · | G50: The OA damper on Circuit #2 will open when the SF CFM demand increases above the DX Coil Face Velocity threshold for Circuit #2. It will remain open until the SF CFM demand decreases below the DX Coil Face Velocity threshold for Circuit #2, at which point the OA damper for circuit #2 will close.
A51: OD | B51: SHUTTER | E51: · | F51: The Motorized Shutter stays open until the system reaches the end of the Occupied Mode period. It will remain open until the supply fan turns off. After the supply fan turns off, the shutter will close.
A52: OD | B52: ODRD | E52: · | F52: The OA damper stays open until the system reaches the end of the Occupied Mode period. It will remain open until the supply fan turns off. After the supply fan turns off, the OA damper closes and the RA damper opens.
A53: OD
A54: SF | B54: H | D54: =CONCATENATE(SUBTOTAL(103, $P$26:P54), ".") -> 7. | E54: Supply Fan (SF): | P54: 2
A55: SF | B55: SFAMS | E55: · | F55: The SF Air Monitoring Station (SF-AMS) is included to monitor the SF air flow only.
A56: SF | B56: SFDPT | E56: · | F56: The SF Differential Pressure Transmitter (SF-DPT) is included to monitor the supply duct static pressure only.
A57: SF | B57: 100OD | E57: · | F57: As the OA damper opens, the OADA auxiliary switch will close and the SF will turn on.
A58: SF | B58: CLG | E58: · | F58: The SF will run for 60 seconds (fixed) before cooling will be enabled.
A59: SF | B59: CLGDH | E59: · | F59: The SF will run for 60 seconds (fixed) before cooling or dehumidification will be enabled.
A60: SF | B60: CLGHTG | E60: · | F60: The SF will run for 60 seconds (fixed) before cooling or heating will be enabled.
A61: SF | B61: CLGDHHTG | E61: · | F61: The SF will run for 60 seconds (fixed) before cooling, dehumidification, or heating will be enabled.
A62: SF | B62: HTG | E62: · | F62: The SF will run for 60 seconds (fixed) before heating will be enabled.
A63: SF | E63: · | F63: The SF shall operate continuously while the unit is in the Occupied Mode. When the system reaches the end of the Occupied Mode period, the SF will continue to run for an additional 2 minutes before turning off.
A64: SF | B64: VSH | E64: · | F64: SF-VSC: Supply Fan with Variable Speed Control.
A65: SF | B65: AMS | F65: · | G65: The SF-VSC will modulate its speed based on the SF Air Monitoring Station (SF-AMS) signal and the SF air flow set point.
A66: SF | B66: CAV | F66: · | G66: The SF-VSC's speed will be manually set based upon the SF air flow and/or static pressure value. Select “Manual Override” in the BACview keypad and input the required speed (%) as determined in the field by Test and Balancing.
A67: SF | B67: SFDPT | F67: · | G67: The SF-VSC will modulate its speed based upon the SF Differential Pressure Transmitter (SF-DPT) signal and the supply duct static pressure set point.
A68: SF | B68: ZNDPT | F68: · | G68: The SF-VSC will modulate its speed based upon the Zone Differential Pressure Transmitter (ZN-DPT) signal and the building static pressure set point.
A69: SF | B69: ZATCLG | F69: · | G69: The SF-VSC will modulate its speed based upon the Zone Air Temperature (ZAT) cooling set point (72°F, adjustable).
A70: SF | B70: ZATCH | F70: · | G70: The SF-VSC will modulate its speed based upon the Zone Air Temperature (ZAT) cooling set point (72°F, adjustable) in Cooling Mode or the ZAT heating set point (68°F, adjustable) in Heating Mode.
A71: SF | B71: ZATHTG | F71: · | G71: The SF-VSC will modulate its speed based upon the Zone Air Temperature (ZAT) heating set point (68°F, adjustable).
A72: SF | B72: VS | F72: · | G72: Optional: For constant air volume (CAV), select “Manual Override” in the BACview keypad and input the required speed (%) as determined in the field by Test and Balancing.
A73: SF
A74: EF | B74: H | D74: =CONCATENATE(SUBTOTAL(103, $P$26:P74), ".") -> 8. | E74: Exhaust Fan (EF): | P74: 3
A75: EF | B75: EFAMS | E75: · | F75: The EF Air Monitoring Station (EF-AMS) is included to monitor the EF air flow only.
A76: EF | B76: EFDPT | E76: · | F76: The EF Differential Pressure Transmitter (EF-DPT) is included to monitor the exhaust duct static pressure only.
A77: EF | B77: 100OA | E77: · | F77: At the same time the SF turns on, the EF will be enabled to run.
A78: EF | B78: COMBOOD | E78: · | F78: As the OA damper opens, the OADA auxiliary switch will close and the EF will be enabled to run.
A79: EF | E79: · | F79: The EF shall be enabled to run while the unit is in the Occupied Mode. When the system reaches the end of the Occupied Mode period, the EF will be enabled to run for an additional 2 minutes before turning off.
A80: EF | B80: VSH | E80: · | F80: EF-VSC: Exhaust Fan with Variable Speed Control.
A81: EF | B81: AMS | F81: · | G81: The EF-VSC will modulate its speed based on the EF Air Monitoring Station (EF-AMS) signal and the EF air flow (in Cubic Feet per Minute - CFM) set point.
A82: EF | B82: CAV | F82: · | G82: The EF-VSC's speed will be manually set based upon the EF air flow and/or static pressure value. Select “Manual Override” in the BACview keypad and input the required speed (%) as determined in the field by Test and Balancing.
A83: EF | B83: EFDPT | F83: · | G83: If the EF Differential Pressure Transmitter (EF-DPT) signal is above the exhaust duct static pressure set point, the EF-VSC will modulate its speed based upon the EF-DPT and the set point. If the EF-DPT signal is below the exhaust duct static pressure set point, the EF will modulate down to 0% (adjustable) speed.
A84: EF | B84: ZNDPT | F84: · | G84: If the Zone Differential Pressure Transmitter (ZN-DPT) signal is above the building static pressure set point, the EF-VSC will modulate its speed based upon the ZN-DPT and the set point. If the ZN-DPT signal is below the building static pressure set point, the EF will modulate down to 0% (adjustable) speed.
A85: EF | B85: VS | F85: · | G85: Optional: For constant air volume (CAV), select “Manual Override” in the BACview keypad and input the required speed (%) as determined in the field by Test and Balancing.
A86: EF
A87: ZATSAT | B87: H | D87: =CONCATENATE(SUBTOTAL(103, $P$26:P87), ".") -> 9. | E87: ZAT / SAT Set Point Reset: | P87: 4
A88: ZATSAT | E88: · | F88: ZAT / SAT Set Point Reset is selectable using the BACview display pad or Building Automation System (BAS) (default is “OFF”).
A89: ZATSAT | B89: CLG | E89: · | F89: As the ZAT goes above the ZAT cooling set point, the SAT cooling set point will decrease by a ratio (adjustable) in order to lower the ZAT. As the ZAT goes below the ZAT cooling set point, the SAT cooling set point will increase by a ratio (adjustable) in order to raise the ZAT. When the ZAT equals the ZAT cooling set point, the SAT cooling set point will return to the original value.
A90: ZATSAT | B90: HTG | E90: · | F90: As the ZAT goes below the ZAT heating set point, the SAT heating set point will increase by a ratio (adjustable) in order to raise the ZAT. As the ZAT goes above the ZAT heating set point, the SAT heating set point will decrease by a ratio (adjustable) in order to lower the ZAT. When the ZAT equals the ZAT heating set point, the SAT heating set point will return to the original value.
A91: ZATSAT | E91: · | F91: Example: A ZAT:SAT ratio of 1:3 means for every 1°F of ZAT increase the SAT set point will decrease by 3°F; maximum -15°F (ZAT = 73°F, SAT = 69°F; ZAT = 74°F, SAT = 66°F; ZAT = 75°F, SAT = 63°F; etc.).
A92: ZATSAT
A93: ECON | B93: H | D93: =CONCATENATE(SUBTOTAL(103, $P$26:P93), ".") -> 10. | E93: Economizer Mode: | P93: 5
A94: ECON | B94: OAE | E94: · | F94: Free Cooling: When there is a demand for cooling, if the Outdoor Air Enthalpy (OAE) is below 22 BTU/lb (adjustable) and the Outdoor Air Temperature (OAT) is below 59°F (adjustable), the Economizer will be enabled and act as 1st stage cooling. The compressor will remain off, the OA damper will start to open from the default position, and the RA damper will start to close. The OA and RA dampers will modulate based upon the Supply Air Temperature (SAT) cooling set point of 55°F (adjustable).
A95: ECON | B95: OAEECW | E95: · | F95: Free Cooling: When there is a demand for cooling, if the Outdoor Air Enthalpy (OAE) is below 22 BTU/lb (adjustable) and the Outdoor Air Temperature (OAT) is below 59°F (adjustable), the Economizer will be enabled and act as 1st stage cooling. The wheel will be disabled, compressor will remain off, the OA damper will start to open from the default position, and the RA damper will start to close. The OA and RA dampers will modulate based upon the Supply Air Temperature (SAT) cooling set point of 55°F (adjustable).
A96: ECON | B96: OAT | E96: · | F96: Free Cooling: When there is a demand for cooling, if the Outdoor Air Temperature (OAT) is equal to or below 55°F (adjustable), the Economizer will be enabled and act as 1st stage cooling. The compressor will remain off, the OA damper will start to open from the default position, and the RA damper will start to close. The OA and RA dampers will modulate based upon the Supply Air Temperature (SAT) cooling set point of 55°F (adjustable).
A97: ECON | B97: OATECW | E97: · | F97: Free Cooling: When there is a demand for cooling, if the Outdoor Air Temperature (OAT) is equal to or below 55°F (adjustable), the Economizer will be enabled and act as 1st stage cooling. The wheel will be disabled, compressor will remain off, the OA damper will start to open from the default position, and the RA damper will start to close. The OA and RA dampers will modulate based upon the Supply Air Temperature (SAT) cooling set point of 55°F (adjustable).
A98: ECON | B98: C1 | E98: · | F98: After 1st stage cooling is enabled, a 10-minute (adjustable) staging delay is initiated. If there is still a demand for additional cooling after the delay time has expired, compressor #1 will run as the 2nd stage cooling. At this point, the OA and RA dampers will modulate based upon the Mixed Air Temperature (MAT) cooling set point of 65°F (adjustable).
A99: ECON | B99: NOEF | E99: · | F99: If the MAT falls below the SAT low limit set point (40°F; adjustable), the OA damper shall close.
A100: ECON | B100: EF | E100: · | F100: If the MAT falls below the SAT low limit set point (40°F; adjustable), the EF will turn off and the OA damper shall close.
A101: ECON | B101: OAE | E101: · | F101: When the OAE goes 2 BTU/lb (adjustable) above the OAE cooling set point 22 BTU/lb (adjustable) or the OAT is equal to or greater than 59°F (adjustable), the OA damper will go back to default position and the unit will return to normal cooling mode.
A102: ECON | B102: OAT | E102: · | F102: When the OAT is equal to or greater than 59°F (adjustable), the OA damper will go back to default position and the unit will return to normal cooling mode.
A103: ECON | E103: · | F103: Economizer Fault Detections and Diagnosis Alarms (Title 24):
A104: ECON | F104: · | G104: FDD: Damper Not Modulating
A105: ECON | F105: · | G105: FDD: Economizing When It Should Not
A106: ECON | F106: · | G106: FDD: Excess Outdoor Air
A107: ECON | F107: · | G107: FDD: Not Economizing When It Should
A108: ECON | F108: · | G108: FDD: OAT Sensor Failure
A109: ECON | F109: · | G109: FDD: SAT Sensor Failure
A110: ECON
A111: ECW | B111: H | D111: =CONCATENATE(SUBTOTAL(103, $P$26:P111), ".") -> 11. | E111: Energy Conservation Wheel (ECW): | P111: 6
A112: ECW | B112: BO | E112: · | F112: ECW provided by others.
A113: ECW | B113: ALC | E113: · | F113: After the SF turns on, the ECW is enabled.
A114: ECW | B114: JCI | E114: · | F114: As the OA damper opens, the Johnson Controls Incorporated (JCI) C450 controller is enabled.
A115: ECW | B115: JCI | E115: · | F115: At this point, the ECW becomes an independently controlled piece of equipment.
A116: ECW | B116: BP | E116: · | F116: The ECW By-Pass Damper will open when the ECW is off and it will close when the ECW is on.
A117: ECW | B117: STDH | E117: · | F117: ECW Standard Operation:
A118: ECW | B118: STD | F118: · | G118: When the OAT is 3°F (adjustable) or more above or below the RAT, the ECW will be on, otherwise it is off.
A119: ECW | B119: OODH | E119: · | F119: ECW with On/Off Defrost:
A120: ECW | B120: OOD | F120: · | G120: When the OAT is 3°F (adjustable) or more above or below the RAT, the ECW will be on. It will be off if the OAT is less than 3°F (adjustable) above or below the RAT or if the WExAT is below 25°F (adjustable) to allow for wheel defrosting. When the WExAT rises above 35°F (adjustable), the wheel will turn back on.
A121: ECW | B121: VFDH | E121: · | F121: ECW with VFD Controlled Defrost (WM-VFD):
A122: ECW | B122: VFD | F122: · | G122: When the OAT is 3°F (adjustable) or more above or below the RAT, the ECW will be on. It will be off if the OAT is less than 3°F (adjustable) above or below the RAT. If the WExAT goes below 25°F (adjustable), it will modulate speed down to 10 Hz (minimum, adjustable) to allow for wheel defrosting. It will increase speed as the WExAT rises toward 25°F (adjustable) or more.
A123: ECW
A124: CLG | B124: H | D124: =CONCATENATE(SUBTOTAL(103, $P$26:P124), ".") -> 12. | E124: Cooling Mode: | P124: 7
A125: CLG | B125: ASHP | E125: · | F125: Reversing Valve is "OFF" in Cooling Mode.
A126: CLG | B126: WSHP | E126: · | F126: Reversing Valve is "ON" in Cooling Mode.
A127: CLG | B127: CMECAT | E127: · | F127: Cooling Mode is available when the Entering Coil Air Temperature (ECAT) is 1°F (fixed) above the ECAT cooling lower limit (55°F, adjustable) and there is a demand for cooling.
A128: CLG | B128: CMMAT | E128: · | F128: Cooling Mode is available when the Mixed Air Temperature (MAT) is 1°F (fixed) above the MAT cooling lower limit (55°F, adjustable) and there is a demand for cooling.
A129: CLG | B129: CMOAT | E129: · | F129: Cooling Mode is available when the Outdoor Air Temperature (OAT) is 1°F (fixed) above the OAT cooling lower limit (55°F, adjustable) and there is a demand for cooling.
A130: CLG | B130: CMREC | E130: · | F130: Cooling Mode is available when the Outdoor Air Temperature (OAT) is 1°F (fixed) above the OAT cooling lower limit (40°F, adjustable) and there is a demand for cooling.
A131: CLG | B131: ECAE | E131: · | F131: When the Entering Coil Air Enthalpy (ECAE) is 1 BTU/lb (adjustable) or more above the ECAE cooling set point #1 (24 BTU/lb, adjustable), compressor #1 turns on.
A132: CLG | B132: ECAT | E132: · | F132: When the Entering Coil Air Temperature (ECAT) is 1°F (adjustable) or more above the ECAT cooling set point #1 (60°F, adjustable), compressor #1 turns on.
A133: CLG | B133: ECAT/DP | E133: · | F133: When the Entering Coil Air Temperature (ECAT) is 1°F (adjustable) or more above the ECAT cooling set point #1 (60°F, adjustable) or the Entering Coil Dew Point (ECDP) is 1°F (adjustable) or more above the ECDP cooling set point #1 (55°F, adjustable), compressor #1 turns on.
A134: CLG | B134: ECAT/DPLC | E134: · | F134: When the Entering Coil Air Temperature (ECAT) is 1°F (adjustable) or more above the ECAT cooling set point #1 (60°F, adjustable) or the Entering Coil Dew Point (ECDP) is 1°F (adjustable) or more above the Supply Air Dew Point (SADP) cooling set point (55°F, adjustable), compressor #1 turns on.
A135: CLG | B135: ECAT/E | E135: · | F135: When the Entering Coil Air Temperature (ECAT) is 1°F (adjustable) or more above the ECAT cooling set point #1 (60°F, adjustable) or the Entering Coil Air Enthalpy (ECAE) is 1 BTU/lb (adjustable) or more above the ECAE cooling set point #1 (24 BTU/lb, adjustable), compressor #1 turns on.
A136: CLG | B136: ECAT/SAT | E136: · | F136: When the Entering Coil Air Temperature (ECAT) is 1°F (adjustable) or more above the ECAT cooling set point (70°F, adjustable), compressor #1 turns on.
A137: CLG | B137: MAT | E137: · | F137: When the Mixed Air Temperature (MAT) is 2°F (adjustable) or more above the MAT cooling set point (55°F, adjustable), compressor #1 turns on.
A138: CLG | B138: MAT/SAT | E138: · | F138: When the Mixed Air Temperature (MAT) is 2°F (adjustable) or more above the Supply Air Temperature (SAT) cooling set point (55°F, adjustable), compressor #1 turns on.
A139: CLG | B139: OAE | E139: · | F139: When the Outdoor Air Enthalpy (OAE) is 1 BTU/lb (adjustable) or more above the OAE cooling set point #1 (24 BTU/lb, adjustable), compressor #1 turns on.
A140: CLG | B140: OAT | E140: · | F140: When the Outdoor Air Temperature (OAT) is 1°F (adjustable) or more above the OAT cooling set point #1 (60°F, adjustable), compressor #1 turns on.
A141: CLG | B141: OAT/DP | E141: · | F141: When the Outdoor Air Temperature (OAT) is 1°F (adjustable) or more above the OAT cooling set point #1 (60°F, adjustable) or the Outdoor Air Dew Point (OADP) is 1°F (adjustable) or more above the OADP cooling set point #1 (55°F, adjustable), compressor #1 turns on.
A142: CLG | B142: OAT/DPLC | E142: · | F142: When the Outdoor Air Temperature (OAT) is 1°F (adjustable) or more above the OAT cooling set point #1 (60°F, adjustable) or the Outdoor Air Dew Point (OADP) is 1°F (adjustable) or more above the Supply Air Dew Point (SADP) cooling set point (55°F, adjustable), compressor #1 turns on.
A143: CLG | B143: OAT/E | E143: · | F143: When the Outdoor Air Temperature (OAT) is 1°F (adjustable) or more above the OAT cooling set point #1 (60°F, adjustable) or the Outdoor Air Enthalpy (OAE) is 1 BTU/lb (adjustable) or more above the OAE cooling set point #1 (24 BTU/lb, adjustable), compressor #1 turns on.
A144: CLG | B144: OAT/SAT | E144: · | F144: When the Outdoor Air Temperature (OAT) is 1°F (adjustable) or more above the OAT cooling set point (70°F, adjustable), compressor #1 turns on.
A145: CLG | B145: RAT | E145: · | F145: When the Return Air Temperature (RAT) is 1°F (adjustable) or more above the RAT cooling set point #1 (72°F, adjustable), compressor #1 turns on.
A146: CLG | B146: ZAT | E146: · | F146: When the Zone Air Temperature (ZAT) is 1°F (adjustable) or more above the ZAT cooling set point (74°F, adjustable), compressor #1 turns on.
A147: CLG | B147: C2ECAE | E147: · | F147: When the ECAE is 1 BTU/lb (adjustable) or more above the ECAE cooling set point #2 (26 BTU/lb, adjustable), compressor #2 turns on -- not less than 10 minutes (adjustable) after compressor #1 turned on.
A148: CLG | B148: C2ECAT | E148: · | F148: When the ECAT is 1°F (adjustable) or more above the ECAT cooling set point #2 (75°F, adjustable), compressor #2 turns on -- not less than 10 minutes (adjustable) after compressor #1 turned on.
A149: CLG | B149: C2ECAT/DP | E149: · | F149: When the ECAT is 1°F (adjustable) or more above the ECAT cooling set point #2 (75°F, adjustable) and the ECDP is 1°F (adjustable) and more above the ECDP cooling set point #2 (65°F, adjustable), compressor #2 turns on -- not less than 10 minutes (adjustable) after compressor #1 turned on.
A150: CLG | B150: C2ECAT/E | E150: · | F150: When the ECAT is 1°F (adjustable) or more above the ECAT cooling set point #2 (75°F, adjustable) or the ECAE is 1 BTU/lb (adjustable) or more above the ECAE cooling set point #2 (26 BTU/lb, adjustable), compressor #2 turns on -- not less than 10 minutes (adjustable) after compressor #1 turned on.
A151: CLG | B151: C2OAE | E151: · | F151: When the OAE is 1 BTU/lb (adjustable) or more above the OAE cooling set point #2 (26 BTU/lb, adjustable), compressor #2 turns on -- not less than 10 minutes (adjustable) after compressor #1 turned on.
A152: CLG | B152: C2OAT | E152: · | F152: When the OAT is 1°F (adjustable) or more above the OAT cooling set point #2 (75°F, adjustable), compressor #2 turns on -- not less than 10 minutes (adjustable) after compressor #1 turned on.
A153: CLG | B153: C2OAT/DP | E153: · | F153: When the OAT is 1°F (adjustable) or more above the OAT cooling set point #2 (75°F, adjustable) or the OADP is 1°F (adjustable) and more above the OADP cooling set point #2 (65°F, adjustable), compressor #2 turns on -- not less than 10 minutes (adjustable) after compressor #1 turned on.
A154: CLG | B154: C2OAT/E | E154: · | F154: When the OAT is 1°F (adjustable) or more above the OAT cooling set point #2 (75°F, adjustable) or the OAE is 1 BTU/lb (adjustable) or more above the OAE cooling set point #2 (26 BTU/lb, adjustable), compressor #2 turns on -- not less than 10 minutes (adjustable) after compressor #1 turned on.
A155: CLG | B155: C2RAT | E155: · | F155: When the RAT is 2°F (adjustable) or more above the RAT cooling set point (72°F, adjustable), compressor #2 turns on -- not less than 10 minutes (adjustable) after compressor #1 turned on.
A156: CLG | B156: C2SADP | E156: · | F156: When the SADP is 1°F (adjustable) or more above the SADP cooling set point (55°F, adjustable), compressor #2 turns on -- not less than 10 minutes (adjustable) after compressor #1 turned on.
A157: CLG | B157: C2SAT | E157: · | F157: When the SAT is 2°F (adjustable) or more above the SAT cooling set point (70°F, adjustable), compressor #2 turns on -- not less than 10 minutes (adjustable) after compressor #1 turned on.
A158: CLG | B158: RC2SAT | E158: · | F158: When the SAT is 2°F (adjustable) or more above the SAT cooling set point (55°F, adjustable), compressor #2 turns on -- not less than 10 minutes (adjustable) after compressor #1 turned on.
A159: CLG | B159: C2ZAT | E159: · | F159: When the ZAT is 2°F (adjustable) or more above the ZAT cooling set point (74°F, adjustable), compressor #2 turns on -- not less than 10 minutes (adjustable) after compressor #1 turned on.
A160: CLG | B160: C2ECAE | E160: · | F160: When the ECAE is 1 BTU/lb (adjustable) or more below the ECAE cooling set point #2 (26 BTU/lb, adjustable), after 10 minutes (adj.) time delay, compressor #2 turns off.
A161: CLG | B161: C2ECAT | E161: · | F161: When the ECAT is 1°F (adjustable) or more below the ECAT cooling set point #2 (75°F, adjustable), after 10 minutes (adj.) time delay, compressor #2 turns off.
A162: CLG | B162: C2ECAT/DP | E162: · | F162: When the ECAT is 1°F (adjustable) or more below the ECAT cooling set point #2 (75°F, adjustable) and the ECDP is 1°F (adjustable) or more below the ECDP cooling set point #2 (65°F, adjustable), after 10 minutes (adj.) time delay, compressor #2 turns off.
A163: CLG | B163: C2ECAT/E | E163: · | F163: When the ECAT is 1°F (adjustable) or more below the ECAT cooling set point #2 (75°F, adjustable) and the ECAE is 1 BTU/lb (adjustable) or more below the ECAE cooling set point #2 (26 BTU/lb, adjustable), after 10 minutes (adj.) time delay, compressor #2 turns off.
A164: CLG | B164: C2OAE | E164: · | F164: When the OAE is 1 BTU/lb (adjustable) or more below the OAE cooling set point #2 (26 BTU/lb, adjustable), after 10 minutes (adj.) time delay, compressor #2 turns off.
A165: CLG | B165: C2OAT | E165: · | F165: When the OAT is 1°F (adjustable) or more below the OAT cooling set point #2 (75°F, adjustable), after 10 minutes (adj.) time delay, compressor #2 turns off.
A166: CLG | B166: C2OAT/DP | E166: · | F166: When the OAT is 1°F (adjustable) or more below the OAT cooling set point #2 (75°F, adjustable) and the OADP is 1°F (adjustable) or more below the OADP cooling set point #2 (65°F, adjustable), after 10 minutes (adj.) time delay, compressor #2 turns off.
A167: CLG | B167: C2OAT/E | E167: · | F167: When the OAT is 1°F (adjustable) or more below the OAT cooling set point #2 (75°F, adjustable) and the OAE is 1 BTU/lb (adjustable) or more below the OAE cooling set point #2 (26 BTU/lb, adjustable), compressor #2 turns off.
A168: CLG | B168: C2RAT | E168: · | F168: When the RAT is 2°F (adjustable) or more below the RAT cooling set point (72°F, adjustable), after 10 minutes (adj.) time delay,compressor #2 turns off.
A169: CLG | B169: C2SADP | E169: · | F169: When the SADP is 1°F (adjustable) or more below the SADP cooling set point (55°F, adjustable), after 10 minutes (adj.) time delay, compressor #2 turns off.
A170: CLG | B170: C2SAT | E170: · | F170: When the SAT is 2°F (adjustable) or more below the SAT cooling set point (70°F, adjustable), after 10 minutes (adj.) time delay, compressor #2 turns off.
A171: CLG | B171: RC2SAT | E171: · | F171: When the SAT is 2°F (adjustable) or more below the SAT cooling set point (55°F, adjustable), after 10 minutes (adj.) time delay, compressor #2 turns off.
A172: CLG | B172: C2ZAT | E172: · | F172: When the ZAT is equal to the ZAT cooling set point (74°F, adjustable), after 10 minutes (adj.) time delay, after 10 minutes (adj.) time delay, compressor #2 turns off.
A173: CLG | B173: ECAE | E173: · | F173: When the ECAE is 1 BTU/lb (adjustable) or more below the ECAE cooling set point #1 (24 BTU/lb, adjustable), compressor #1 turns off.
A174: CLG | B174: ECAT | E174: · | F174: When the ECAT is 1°F (adjustable) or more below the ECAT cooling set point #1 (60°F, adjustable), compressor #1 turns off.
A175: CLG | B175: ECAT/DP | E175: · | F175: When the ECAT is 1°F (adjustable) or more below the ECAT cooling set point #1 (60°F, adjustable) and the ECDP is 1°F (adjustable) or more below the ECDP cooling set point #1 (55°F, adjustable), compressor #1 turns off.
A176: CLG | B176: ECAT/DPLC | E176: · | F176: When the ECAT is 1°F (adjustable) or more below the ECAT cooling set point #1 (60°F, adjustable) and the ECDP is 1°F (adjustable) or more below the SADP cooling set point (55°F, adjustable), compressor #1 turns off.
A177: CLG | B177: ECAT/E | E177: · | F177: When the ECAT is 1°F (adjustable) or more below the ECAT cooling set point #1 (60°F, adjustable) and the ECAE is 1 BTU/lb (adjustable) or more below the ECAE cooling set point #1 (24 BTU/lb, adjustable), compressor #1 turns off.
A178: CLG | B178: ECAT/SAT | E178: · | F178: When the ECAT is 1°F (adjustable) or more below the ECAT cooling set point (70°F, adjustable), compressor #1 turns off.
A179: CLG | B179: MAT | E179: · | F179: When the MAT is 1°F (adjustable) or more below the MAT cooling set point (55°F, adjustable), compressor #1 turns off.
A180: CLG | B180: MAT/SAT | E180: · | F180: When the MAT is 1°F (adjustable) or more below the SAT cooling set point (55°F, adjustable), compressor #1 turns off.
A181: CLG | B181: OAE | E181: · | F181: When the OAE is 1 BTU/lb (adjustable) or more below the OAE cooling set point #1 (24 BTU/lb, adjustable), compressor #1 turns off.
A182: CLG | B182: OAT | E182: · | F182: When the OAT is 1°F (adjustable) or more below the OAT cooling set point #1 (60°F, adjustable), compressor #1 turns off.
A183: CLG | B183: OAT/DP | E183: · | F183: When the OAT is 1°F (adjustable) or more below the OAT cooling set point #1 (60°F, adjustable) and the OADP is 1°F (adjustable) or more below the OADP cooling set point #1 (55°F, adjustable), compressor #1 turns off.
A184: CLG | B184: OAT/DPLC | E184: · | F184: When the OAT is 1°F (adjustable) or more below the OAT cooling set point #1 (60°F, adjustable) and the OADP is 1°F (adjustable) or more below the SADP cooling set point (55°F, adjustable), compressor #1 turns off.
A185: CLG | B185: OAT/E | E185: · | F185: When the OAT is 1°F (adjustable) or more below the OAT cooling set point #1 (60°F, adjustable) and the OAE is 1 BTU/lb (adjustable) or more below the OAE cooling set point #1 (24 BTU/lb, adjustable), compressor #1 turns off.
A186: CLG | B186: OAT/SAT | E186: · | F186: When the OAT is 1°F (adjustable) or more below the OAT cooling set point (70°F, adjustable), compressor #1 turns off.
A187: CLG | B187: RAT | E187: · | F187: When the RAT is 1°F (adjustable) or more below the RAT cooling set point #1 (72°F, adjustable), compressor #1 turns off.
A188: CLG | B188: ZAT | E188: · | F188: When the ZAT is 1°F (adjustable) or more below the ZAT cooling set point (74°F, adjustable), compressor #1 turns off.
A189: CLG | B189: SFVSC | E189: · | F189: Factory suggested minimum SF-VSC modulation shall be 50% (adjustable).
A190: CLG | B190: TANDEM | E190: · | F190: Tandem Compressor: The lag circuit is enabled when the unloader switch is energized. The unloader switch is energized when the compressor suction pressure goes above the set point of 140psi (adjustable on the unloader switch). When the suction pressure goes below the set point minus a differential of 32psi (adjustable), the lag circuit turns off. A time delay module with a 5-minute (fixed) minimum run-time and 5-minute (fixed) minimum time-off delay is used to prevent compressor short cycling.
A191: CLG | B191: C2OPT | E191: · | F191: Optional: When enabled, if there is a call for 1st stage cooling, 2nd stage cooling will be enabled after a 10-minute (adjustable) delay. Default is "OFF".
A192: CLG | E192: · | F192: Compressor enabling logic includes a 5-minute (fixed) minimum run-time and a 5-minute (fixed) minimum time-off delay to prevent compressor short cycling.
A193: CLG | B193: CHWH | E193: · | F193: Chilled Water Coil:
A194: CLG | B194: CHWOASAT | F194: · | G194: The chilled water coil valve will modulate based upon the SAT sensor and set point (70°F, adjustable).
A195: CLG | B195: CHWRSAT | F195: · | G195: The chilled water coil valve will modulate based upon the SAT sensor and set point (55°F, adjustable).
A196: CLG | B196: DIGH | E196: · | F196: Digital Compressor:
A197: CLG | B197: 2DIGH | E197: · | F197: Digital Compressors:
A198: CLG | B198: DIG | F198: · | G198: The ALC controls the capacity of the digital compressor by rapidly loading and unloading the compressor in 15 second intervals.
A199: CLG | B199: 2DIG | F199: · | G199: The ALC controls the capacity of the digital compressors by rapidly loading and unloading the compressors in 15 second intervals.
A200: CLG | B200: DIGDXLAT | F200: · | G200: The digital compressor will modulate based upon the DX Leaving Air Temperature (DX LAT) sensor and set point (55°F, adjustable).
A201: CLG | B201: DIGOASAT | F201: · | G201: The digital compressor will modulate based upon the SAT sensor and set point (70°F, adjustable).
A202: CLG | B202: DIGRSAT | F202: · | G202: The digital compressor will modulate based upon the SAT sensor and set point (55°F, adjustable).
A203: CLG | B203: DIGSLT | F203: · | G203: The digital compressor will modulate based upon the DX Suction Line Temperature (SLT) sensor and set point (50°F, adjustable).
A204: CLG | B204: DIGHGRH | F204: · | G204: If the HGRH is unable to maintain the SAT cooling set point (70°F, adjustable), the digital compressor modulation will be increased to provide more capacity for reheat.
A205: CLG | B205: VSCH | E205: · | F205: Vari-Speed Compressor:
A206: CLG | B206: 2VSCH | E206: · | F206: Vari-Speed Compressors:
A207: CLG | B207: VSCDXLAT | F207: · | G207: The vari-speed compressor modulation will be based upon the DX Leaving Air Temperature (DX LAT) sensor and set point (55°F, adjustable).
... 509 more rows

Sheet Inside CP
C1: LEGEND - ITEMS INSIDE CONTROL PANEL
A2: START | C2: ITEM | D2: FUNCTIONAL DESIGNATION | E2: LINE NUMBER | F2: DESCRIPTION
A3: SF | B3: C | C3: 101 | D3: SFC | E3: 148 | F3: Supply Fan Motor Contactor
A4: SF | B4: VS | C4: 101 | D4: SFR | E4: 148 | F4: Supply Fan Motor Relay
A5: SF | C5: 102 | D5: MSP-SF | E5: 38 | F5: Motor Starter Protection-Supply Fan
A6: SF | B6: VS | C6: 103 | D6: SF-VFD | E6: 38 | F6: Supply Fan-Variable Frequency Drive
A7: CLG | B7: C1 | C7: 104 | D7: CC1 | E7: 110 | F7: Compressor Contactor no. 1
A8: CLG | B8: C1T | C8: 104 | D8: CC1A, CC1B | E8: 110, 113 | F8: Compressor Contactor no. 1A and 1B
A9: CLG | B9: C1 | C9: 105 | D9: CC1-A1, CC1-A2 | E9: # | F9: "CC1" Auxiliary Contact no. 1 and 2
A10: CLG | B10: C1T | C10: 105 | D10: CC1A-A1, CC1A-A2 | E10: # | F10: "CC1A" Auxiliary Contact no. 1 and 2
A11: CLG | B11: C1T | C11: 106 | D11: CC1B-A1 | E11: # | F11: "CC1B" Auxiliary Contact no. 1
A12: CLG | B12: C1 | C12: 107 | D12: MSP-CC1 | E12: 1 | F12: Motor Starter Protection-“CC1”
A13: CLG | B13: C1T | C13: 107 | D13: MSP-CC1A, MSP-CC1B | E13: 1, 6 | F13: Motor Starter Protection-“CC1A, CC1B”
A14: CLG | B14: C2 | C14: 108 | D14: CC2 | E14: 123 | F14: Compressor Contactor no. 2
A15: CLG | B15: C2T | C15: 108 | D15: CC2A, CC2B | E15: 123, 126 | F15: Compressor Contactor no. 2A and 2B
A16: CLG | B16: C2 | C16: 109 | D16: CC2-A1, CC2-A2 | E16: # | F16: "CC2" Auxiliary Contact no. 1 and 2
A17: CLG | B17: C2T | C17: 109 | D17: CC2A-A1, CC2A-A2 | E17: # | F17: "CC2A" Auxiliary Contact no. 1 and 2
A18: CLG | B18: C2T | C18: 110 | D18: CC2B-A1 | E18: # | F18: "CC2B" Auxiliary Contact no. 1
A19: CLG | B19: C2 | C19: 111 | D19: MSP-CC2 | E19: 11 | F19: Motor Starter Protection-“CC2”
A20: CLG | B20: C2T | C20: 111 | D20: MSP-CC2A, MSP-CC2B | E20: 11, 16 | F20: Motor Starter Protection-“CC2A, CC2B”
A21: CLG | B21: DIG | C21: 112 | D21: DIG1 | E21: 108 | F21: Digital Compressor no. 1 Unloader Solenoid
A22: CLG | B22: 2DIG | C22: 112 | D22: DIG1, DIG2 | E22: 108, 121 | F22: Digital Compressor no. 1 and 2 Unloader Solenoid
A23: ASHP | B23: C1 | C23: 113 | D23: DR1 | E23: 91 | F23: Defrost Relay no. 1
A24: ASHP | B24: C2 | C24: 113 | D24: DR1, DR2 | E24: 91, 99 | F24: Defrost Relay no. 1 and 2
A25: ASHP | B25: C1 | C25: 114 | D25: DTM1 | E25: 88 | F25: Defrost Timer no. 1
A26: ASHP | B26: C2 | C26: 114 | D26: DTM1, DTM2 | E26: 88, 96 | F26: Defrost Timer no. 1 and 2
A27: EF | B27: C | C27: 115 | D27: EFC | E27: 152 | F27: Exhaust Fan Contactor
A28: EF | B28: VS | C28: 115 | D28: EFR | E28: 152 | F28: Exhaust Fan Relay
A29: EF | C29: 116 | D29: MSP-EF | E29: 46 | F29: Motor Starter Protection-Exhaust Fan
A30: EF | B30: VS | C30: 117 | D30: EFVFD | E30: 46 | F30: Exhaust Fan-Variable Frequency Drive
A31: STD | C31: 118 | D31: EGB | E31: 4 | F31: Equipment Grounding Bar
A32: STD | C32: 119 | D32: F1, F2, F3 | E32: 59, 60, 61 | F32: Fusing-See Fuse Table on this sheet
A33: STD | C33: 120 | D33: CB | E33: 71 | F33: Circuit Breaker-See Fuse Table on this sheet
A34: CLG | B34: OFC | C34: 121 | D34: OFC1 | E34: 79 | F34: Outdoor Fan Contactor no. 1
A35: CLG | B35: 2OFC | C35: 121 | D35: OFC1, OFC2 | E35: 79, 83 | F35: Outdoor Fan Contactor no. 1 and 2
A36: CLG | B36: OF | C36: 122 | D36: MSP-OF1 | E36: 22 | F36: Motor Starter Protection-Outdoor Fan no. 1
A37: CLG | B37: 2OF | C37: 123 | D37: MSP-OF2 | E37: 30 | F37: Motor Starter Protection-Outdoor Fan no. 2
A38: CLG | B38: OF2 | C38: 123 | D38: MSP-OF2 | E38: 26 | F38: Motor Starter Protection-Outdoor Fan no. 2
A39: CLG | B39: 3OF | C39: 124 | D39: MSP-OF3 | E39: 30 | F39: Motor Starter Protection-Outdoor Fan no. 3
A40: CLG | B40: 4OF | C40: 125 | D40: MSP-OF4 | E40: 34 | F40: Motor Starter Protection-Outdoor Fan no. 4
A41: CLG | B41: OFV | C41: 126 | D41: OF1VFD | E41: 22, 25 | F41: Outdoor Fan Variable Frequency Drive no. 1
A42: CLG | B42: 2OFV | C42: 126 | D42: OF1VFD, OF2VFD | E42: 22, 25, 30 | F42: Outdoor Fan Variable Frequency Drive no. 1 and 2
A43: CLG | B43: OFB | C43: 127 | D43: OFBC1 | E43: 74 | F43: Fan By-pass Contactor no. 1
A44: CLG | B44: 2OFB | C44: 127 | D44: OFBC1, OFBC2 | E44: 74, 77 | F44: Fan By-pass Contactor no. 1 and 2
A45: HTG | B45: HARM | C45: 128 | D45: HARM | E45: Sheet 4 | F45: Heating Analog Relay Module
A46: CLG | B46: HGM | C46: 129 | D46: MDC1 | E46: 214 | F46: Modulating Discharge-Line Controller no. 1
A47: CLG | B47: 2HGM | C47: 129 | D47: MDC1, MDC2 | E47: 214 | F47: Modulating Discharge-Line Controller no. 1 and 2
A48: CLG | B48: HGM | C48: 130 | D48: MRC1 | E48: 202 | F48: Modulating Reheat Controller no. 1
A49: CLG | B49: 2HGM | C49: 130 | D49: MRC1, MRC2 | E49: 202 | F49: Modulating Reheat Controller no. 1 and 2
A50: STD | C50: 131 | D50: PDB | E50: 1, 2, 3 | F50: Power Distribution Block
A51: STD | C51: 132 | D51: PM | E51: 59, 71 | F51: Power/Phase Monitor
A52: CLG | B52: HG | C52: 133 | D52: RHR | E52: 156 | F52: Reheat Relay
A53: HP | C53: 134 | D53: RVR | E53: 158 | F53: Reversing Valve Relay
A54: STD | C54: 135 | D54: T1 | E54: 62, 67 | F54: Control Transformer no. 1
A55: CLG | B55: HGM | C55: 136 | D55: T2 | E55: 200 | F55: Control Transformer no. 2
A56: STD | C56: 137 | D56: TB1 | E56: Sheet 2-5 | F56: Terminal Board no. 1
A57: STD | C57: 138 | D57: TB2 | E57: 71 | F57: Terminal Board no. 2
A58: CLG | B58: HGM | C58: 139 | D58: TB3 | E58: 204, 216 | F58: Terminal Board no. 3
A59: STD | C59: 140 | D59: TB-A | E59: Sheet 5 | F59: Terminal Board no. -A
A60: STD | C60: 141 | D60: TB-D | E60: Sheet 5 | F60: Terminal Board no. -D
A61: STD | C61: 142 | D61: TB-E | E61: Sheet 5 | F61: Terminal Board no. -E
A62: STD | C62: 143 | D62: TB-F | E62: Sheet 5 | F62: Terminal Board no. -F
A63: CLG | B63: C1T | C63: 144 | D63: TD1 | E63: 113 | F63: Time Delay no. 1
A64: CLG | B64: C2T | C64: 144 | D64: TD1, TD2 | E64: 113, 126 | F64: Time Delay no. 1 and 2
A65: CLG | B65: C1T | C65: 145 | D65: BY-PASS TIMER 1 | E65: 115 | F65: By-pass Time Delay no. 1
A66: CLG | B66: C2T | C66: 145 | D66: BY-PASS TIMER 1 & 2 | E66: 115, 128 | F66: By-pass Time Delay no. 1 and 2
A67: ECW | B67: C | C67: 146 | D67: WMC | E67: 463 | F67: Wheel Motor Contactor
A68: ECW | B68: R | C68: 146 | D68: WMR | E68: ??? | F68: Wheel Motor Relay
A69: ECW | C69: 147 | D69: MSP-WM | E69: 54 | F69: Motor Starter Protection-Wheel Motor
A70: ECW | B70: VFD | C70: 148 | D70: WMVFD | E70: 54 | F70: Wheel Motor Variable Frequency Drive
A71: ECW | C71: 149 | D71: C450 | E71: 460 | F71: Johnson Control C450 (0-10VDC)
A72: ECW | C72: 150 | D72: WM-CS | E72: 55, 329 | F72: Wheel Motor Current Sensor
A73: CLG | B73: HGM | C73: 151 | D73: 1K Ohm | E73: 212, 213 | F73: Resistor, 1K Ohms for MDC
A74: CLG | B74: CR1 | C74: 152 | D74: CR1 | E74: 112 | F74: Compressor Relay no. 1
A75: CLG | B75: CR12 | C75: 152 | D75: CR1 and CR2 | E75: 112, 125 | F75: Compressor Relay no. 1 and 2
A76: END | C76: # SEE LINE NUMBER TO THE RIGHT OF CONTACTOR COIL ON WIRING DIAGRAM.

Sheet Outside CP
C1: LEGEND - ITEMS OUTSIDE CONTROL PANEL
A2: START | C2: ITEM | D2: FUNCTIONAL DESIGNATION | E2: LINE NUMBER | F2: DESCRIPTION
A3: APS | B3: SF | C3: 101 | D3: APS | E3: 265 | F3: Air Pressure Switch (Supply Fan)
A4: APS | B4: SFEF | C4: =100 + SUBTOTAL(103, $D$3:D4) -> 102 | D4: APS | E4: 265, 266 | F4: Air Pressure Switch (Supply Fan and Exhaust Fan)
A5: HTG | B5: GAS | C5: =100 + SUBTOTAL(103, $D$3:D5) -> 103 | D5: BCTL | E5: 165 | F5: BCTL
A6: CLG | B6: HGM | C6: =100 + SUBTOTAL(103, $D$3:D6) -> 104 | D6: BOS1 | E6: 132 | F6: Bleed-Off Solenoid no. 1
A7: CLG | B7: 2HGM | C7: =100 + SUBTOTAL(103, $D$3:D7) -> 105 | D7: BOS1, BOS2 | E7: 132, 134 | F7: Bleed-Off Solenoid no. 1 and 2
A8: CLG | B8: C1 | C8: =100 + SUBTOTAL(103, $D$3:D8) -> 106 | D8: CCH1 | E8: 4 | F8: Compressor Crankcase Heater No. 1
A9: CLG | B9: C1T | C9: =100 + SUBTOTAL(103, $D$3:D9) -> 107 | D9: CCH1A, CCH1B | E9: 4, 9 | F9: Compressor Crankcase Heater No. 1A and 1B
A10: CLG | B10: C2 | C10: =100 + SUBTOTAL(103, $D$3:D10) -> 108 | D10: CCH2 | E10: 14 | F10: Compressor Crankcase Heater No. 2
A11: CLG | B11: C2T | C11: =100 + SUBTOTAL(103, $D$3:D11) -> 109 | D11: CCH2A, CCH2B | E11: 14, 19 | F11: Compressor Crankcase Heater No. 2A and 2B
A12: CLG | B12: C1 | C12: =100 + SUBTOTAL(103, $D$3:D12) -> 110 | D12: CM1 | E12: 2 | F12: Compressor Motor No. 1
A13: CLG | B13: C1T | C13: =100 + SUBTOTAL(103, $D$3:D13) -> 111 | D13: CM1A, CM1B | E13: 2, 7 | F13: Compressor Motor No. 1A and 1B
A14: CLG | B14: C2 | C14: =100 + SUBTOTAL(103, $D$3:D14) -> 112 | D14: CM2 | E14: 12 | F14: Compressor Motor No. 2
A15: CLG | B15: C2T | C15: =100 + SUBTOTAL(103, $D$3:D15) -> 113 | D15: CM2A, CM2B | E15: 12, 17 | F15: Compressor Motor No. 2A and 2B
A16: CLG | B16: COP | C16: =100 + SUBTOTAL(103, $D$3:D16) -> 114 | D16: COPM1 | E16: 110, 181 | F16: Compressor Overcurrent Protection Module no. 1
A17: CLG | B17: 2COP | C17: =100 + SUBTOTAL(103, $D$3:D17) -> 115 | D17: COPM2 | E17: 123, 183 | F17: Compressor Overcurrent Protection Module no. 2
A18: DPT | B18: SF | C18: =100 + SUBTOTAL(103, $D$3:D18) -> 116 | D18: DPT260 | E18: 340 | F18: Differential Pressure Transmitter 260 (SF)
A19: DPT | B19: SFEF | C19: =100 + SUBTOTAL(103, $D$3:D19) -> 117 | D19: DPT260 | E19: 340, 342 | F19: Differential Pressure Transmitter 260 (SF and EF)
A20: ASHP | B20: C1 | C20: =100 + SUBTOTAL(103, $D$3:D20) -> 118 | D20: DTT1 | E20: 93 | F20: Defrost T’stat No. 1
A21: ASHP | B21: C2 | C21: =100 + SUBTOTAL(103, $D$3:D21) -> 119 | D21: DTT1, DTT2 | E21: 93, 101 | F21: Defrost T’stat No. 1 and 2
A22: ECON | B22: OD | C22: =100 + SUBTOTAL(103, $D$3:D22) -> 120 | D22: ECDA | E22: 179 | F22: Economizer Damper Actuator
A23: ECON | B23: ODRA | C23: =100 + SUBTOTAL(103, $D$3:D23) -> 121 | D23: ECDA | E23: 178, 179 | F23: Economizer Damper Actuator
A24: EF | C24: =100 + SUBTOTAL(103, $D$3:D24) -> 122 | D24: EFM1 | E24: 47 | F24: Exhaust Fan Motor No. 1
A25: STD | C25: =100 + SUBTOTAL(103, $D$3:D25) -> 123 | D25: FS | E25: 71 | F25: Fire Stat
A26: WSHP | C26: =100 + SUBTOTAL(103, $D$3:D26) -> 124 | D26: FZT | E26: 266 | F26: Freeze Stat
A27: CLG | B27: C1 | C27: =100 + SUBTOTAL(103, $D$3:D27) -> 125 | D27: HP1 | E27: 110 | F27: High Pressure Switch No. 1
A28: CLG | B28: C2 | C28: =100 + SUBTOTAL(103, $D$3:D28) -> 126 | D28: HP2 | E28: 123 | F28: High Pressure Switch No. 2
A29: CLG | B29: C1 | C29: =100 + SUBTOTAL(103, $D$3:D29) -> 127 | D29: LP1 | E29: 265 | F29: Low Pressure Switch No. 1
A30: CLG | B30: C2 | C30: =100 + SUBTOTAL(103, $D$3:D30) -> 128 | D30: LP2 | E30: 266 | F30: Low Pressure Switch No. 2
A31: CLG | B31: LSS1 | C31: =100 + SUBTOTAL(103, $D$3:D31) -> 129 | D31: LSS1A, LSS1B | E31: 136, 138 | F31: Liquid Sub-Cooling Solenoid no. 1A and 1 B
A32: CLG | B32: LSS2 | C32: =100 + SUBTOTAL(103, $D$3:D32) -> 130 | D32: LSS2A, LSS2B | E32: 140, 142 | F32: Liquid Sub-Cooling Solenoid no. 2A and 2B
A33: LLS | B33: C1 | C33: =100 + SUBTOTAL(103, $D$3:D33) -> 131 | D33: LLS1 | E33: 144 | F33: Liquid Line Solenoid no. 1
A34: LLS | B34: C2 | C34: =100 + SUBTOTAL(103, $D$3:D34) -> 132 | D34: LLS1, LLS2 | E34: 144, 146 | F34: Liquid Line Solenoid no. 1 and 2
A35: CLG | B35: OF | C35: =100 + SUBTOTAL(103, $D$3:D35) -> 133 | D35: OFM1 | E35: 29 | F35: Outdoor Fan Motor No. 1
A36: CLG | B36: 2OF | C36: =100 + SUBTOTAL(103, $D$3:D36) -> 134 | D36: OFM2 | E36: 31 | F36: Outdoor Fan Motor No. 2
A37: CLG | B37: OF2 | C37: =100 + SUBTOTAL(103, $D$3:D37) -> 135 | D37: OFM2 | E37: 27 | F37: Outdoor Fan Motor No. 2
A38: CLG | B38: 3OF | C38: =100 + SUBTOTAL(103, $D$3:D38) -> 136 | D38: OFM3 | E38: 31 | F38: Outdoor Fan Motor No. 3
A39: CLG | B39: 4OF | C39: =100 + SUBTOTAL(103, $D$3:D39) -> 137 | D39: OFM4 | E39: 35 | F39: Outdoor Fan Motor No. 4
A40: CLG | B40: HGOO | C40: =100 + SUBTOTAL(103, $D$3:D40) -> 138 | D40: RHS1 | E40: 132 | F40: Reheat Solenoid no. 1
A41: CLG | B41: 2HGOO | C41: =100 + SUBTOTAL(103, $D$3:D41) -> 139 | D41: RHS1, RHS2 | E41: 132, 134 | F41: Reheat Solenoid no. 1 and 2
A42: HP | B42: C1 | C42: =100 + SUBTOTAL(103, $D$3:D42) -> 140 | D42: RVS1 | E42: 73 | F42: Reversing Valve No. 1
A43: HP | B43: C2 | C43: =100 + SUBTOTAL(103, $D$3:D43) -> 141 | D43: RVS1, RVS2 | E43: 73, 76 | F43: Reversing Valve No. 1 and 2
A44: SF | C44: =100 + SUBTOTAL(103, $D$3:D44) -> 142 | D44: SFM1 | E44: 39 | F44: Supply Fan Motor No. 1
A45: WS | C45: =100 + SUBTOTAL(103, $D$3:D45) -> 143 | D45: WFS | E45: 268 | F45: Water Flow Switch
A46: ECW | C46: =100 + SUBTOTAL(103, $D$3:D46) -> 144 | D46: WM | E46: 55 | F46: EC Wheel Motor
A47: END

Sheet Set Point Matrix
D1: Control Variable | K1: Abbreviation | L1: Default Set Point | M1: Adjustment Range
A2: START | M2: Minimum | N2: Maximum
A3: MATRIX
A4: MATRIX | D4: Time Clock:
A5: MATRIX | E5: Set Points:
A6: MATRIX | B6: SCHED | F6: Occupied Mode Period | L6: On: 7:00am
A7: MATRIX | B7: SCHED | L7: Off: 5:00pm
A8: MATRIX | F8: Time Clock Override Time | L8: 30 minutes | M8: 1 minute | N8: 120 minutes
A9: MATRIX | F9: Archive Time Delay | L9: 10 minutes | M9: 5 minute | N9: 30 minutes
A10: MATRIX
A11: MATRIX | B11: OD | D11: Dampers:
A12: MATRIX | B12: ODSP | E12: Set Points:
A13: MATRIX | B13: OADA | F13: Outdoor Air Damper Minimum Position | K13: OD Minimum | L13: 0.2 | M13: 0 | N13: 100
A14: MATRIX | B14: OADA | F14: Outdoor Air Damper Maximum Position | K14: OD Maximum | L14: 0.8 | M14: 0 | N14: 100
A15: MATRIX | B15: RADA | F15: Return Air Damper Minimum Position | K15: RD Minimum | L15: 0.2 | M15: 0 | N15: 100
A16: MATRIX | B16: RADA | F16: Return Air Damper Maximum Position | K16: RD Maximum | L16: 0.8 | M16: 0 | N16: 100
A17: MATRIX | B17: OAAMS | F17: Outdoor Air Air Monitoring Station | K17: OA-AMS | L17: 2000
A18: MATRIX | B18: CO2 | F18: CO2 Set Point #1 | L18: 300ppm | M18: 1ppm | N18: 1999ppm
A19: MATRIX | B19: CO2 | F19: CO2 Set Point #2 | L19: 800ppm | M19: 1ppm | N19: 1999ppm
A20: MATRIX | B20: ODSP
A21: MATRIX | B21: ODDB | E21: Dead Bands:
A22: MATRIX | B22: CO2 | F22: CO2 Upper Dead Band | L22: 100ppm | M22: 1ppm | N22: 1999ppm
A23: MATRIX | B23: ODDB
A24: MATRIX | B24: FANS | D24: Fans:
A25: MATRIX | B25: FANSSP | E25: Set Points:
A26: MATRIX | B26: SFAMS | F26: Supply Fan Air Monitoring Station | K26: SF-AMS | L26: 2000
A27: MATRIX | B27: SFDPT | F27: Supply Fan Static Pressure | K27: SF-DPT (Duct) | L27: 0.75" H2O | M27: 0.0" H2O | N27: 5.0" H2O
A28: MATRIX | B28: SFZATCLG | F28: =F61 -> Zone Air Temperature - Cooling Mode | K28: =K61 -> ZAT Cooling | L28: =L61 -> 72°F
A29: MATRIX | B29: SFZATHTG | F29: =F97 -> Zone Air Temperature - Heating Mode | K29: =K97 -> ZAT Heating SP | L29: =L97 -> 72°F
A30: MATRIX | B30: EFAMS | F30: Exhaust Fan Air Monitoring Station | K30: EF-AMS | L30: 2000
A31: MATRIX | B31: EFDPT | F31: Exhaust Fan Static Pressure | K31: EF-DPT (Zone) | L31: 0.02" H2O | M31: 0.0" H2O | N31: 1.0" H2O
A32: MATRIX | B32: FANSSP
A33: MATRIX | B33: FANSDB | E33: Time Delays:
A34: MATRIX | B34: SF | F34: Supply Fan APS By-Pass Time | K34: SF-APS | L34: 60 sec. | M34: 60 sec. | N34: 120 sec.
A35: MATRIX | B35: SF | F35: Supply Fan Minimum Run Time | L35: 2 min. | M35: 1 min. | N35: 5 min.
A36: MATRIX | B36: EF | F36: Exhaust Fan APS By-Pass Time | K36: EF-APS | L36: 60 sec. | M36: 60 sec. | N36: 120 sec.
A37: MATRIX | B37: EF | F37: Exhaust Fan Minimum Run Time | L37: 2 min. | M37: 1 min. | N37: 5 min.
A38: MATRIX | B38: FANSDB
A39: MATRIX | B39: ECWJCI | D39: ECW: (controlled by JCI C450 Module)
A40: MATRIX | B40: ECWALC | D40: ECW: (controlled by ALC Controller)
A41: MATRIX | E41: Standard Control:
A42: MATRIX | F42: Set Points:
A43: MATRIX | G43: "ON" when OAT <> RAT | K43: OAT/RAT | L43: +/- 3°F
A44: MATRIX
A45: MATRIX | E45: On-Off Defrost Control:
A46: MATRIX | F46: Set Points:
A47: MATRIX | G47: "ON" when OAT <> RAT | K47: OAT/RAT | L47: +/- 3°F
A48: MATRIX | G48: "OFF" when OAT < RAT | K48: OAT | L48: 15°F
A49: MATRIX
A50: MATRIX | E50: VFD Defrost Control:
A51: MATRIX | F51: Set Points:
A52: MATRIX | G52: "ON" (100%) when OAT <> RAT | K52: OAT/RAT | L52: +/- 3°F
A53: MATRIX | G53: Ramps speed down when OAT < Set Point | K53: OAT | L53: 15°F
A54: MATRIX | G54: "OFF" (0%) when OAT = Set Point | K54: OAT | L54: 0°F
A55: MATRIX
A56: MATRIX | D56: Cooling:
A57: MATRIX | E57: Set Points:
A58: MATRIX | F58: Supply Air Temperature - Cooling Mode | K58: SAT Cooling | L58: 70°F | M58: 50°F | N58: 90°F
A59: MATRIX | F59: DX Leaving Air Temperature - Cooling Mode | K59: DX LAT Cooling | L59: 55°F | M59: 32°F | N59: 60°F
A60: MATRIX | F60: Suction Line Temperature - Cooling Mode | K60: SLT Cooling | L60: 45°F | M60: 32°F | N60: 60°F
A61: MATRIX | F61: Zone Air Temperature - Cooling Mode | K61: ZAT Cooling | L61: 72°F | M61: 50°F | N61: 90°F
A62: MATRIX
A63: MATRIX | E63: Dead Bands:
A64: MATRIX | F64: SAT - Compressor #1 - Lower/Upper Dead Band | L64: 1°F/1°F
A65: MATRIX | F65: SAT - Compressor #2 - Lower/Upper Dead Band | L65: 3°F/3°F
A66: MATRIX | F66: SAT - HGRH Lower/Upper Dead Band | L66: 1°F/2°F
A67: MATRIX | F67: ZAT - Lower/Upper Dead Band | L67: 1°F/1°F
A68: MATRIX
A69: MATRIX | E69: Time Delays:
A70: MATRIX | F70: DX LAT Freeze Delay | K70: FP Delay | L70: 15 min. | M70: 5 min. | N70: 30 min.
A71: MATRIX | F71: Low Pressure Switch By-Pass Time | K71: LPS BPT | L71: 90 sec. | M71: 90, 120, 180, or 300 sec.
A72: MATRIX | F72: SLT Freeze Delay | K72: FP Delay | L72: 15 min. | M72: 5 min. | N72: 30 min.
A73: MATRIX | F73: Compressor #1/#2 Minimum Run Time | L73: 5 min. | M73: Not Adjustable
A74: MATRIX | F74: Compressor #1/#2 Minimum Time Off | L74: 5 min. | M74: Not Adjustable
A75: MATRIX | F75: Purge Cycle | K75: Purge Cycle | L75: 60 min.
A76: MATRIX | F76: Purge Time "ON" | K76: Purge On | L76: 1 min.
A77: MATRIX
A78: MATRIX | E78: Coil Freeze Protection:
A79: MATRIX | F79: SLT Upper Freeze Temperature | K79: SLT USP | L79: 38°F | M79: 35°F | N79: 40°F
A80: MATRIX | F80: SLT Middle Freeze Temperature | K80: SLT MSP | L80: 32°F | M80: 30°F | N80: 40°F
A81: MATRIX | F81: SLT Lower Freeze Temperature | K81: SLT LSP | L81: 28°F | M81: 28°F | N81: 35°F
A82: MATRIX
A83: MATRIX | D83: Dehumidification:
A84: MATRIX | E84: Set Points:
A85: MATRIX | F85: Outdoor Air Temperature - DH Mode | K85: DEHUM OAT | L85: 60°F | M85: 55°F | N85: 90°F
A86: MATRIX | F86: Zone Relative Humidity - DH Mode | K86: ZRH SP | L86: 0.55 | M86: 0.3 | N86: 0.65
A87: MATRIX
A88: MATRIX | E88: Dead Bands:
A89: MATRIX | F89: Zone Rel. Humidity - Comp. #1 - Upper Dead Band | K89: DH1 ZRH UDB | L89: 0.01
A90: MATRIX | F90: Zone Rel. Humidity - Comp. #2 - Upper Dead Band | K90: DH2 ZRH UDB | L90: 0.02
A91: MATRIX | F91: Zone Rel. Humidity - Lower Dead Band | K91: DH ZRH LDB | L91: 0.02
A92: MATRIX
A93: MATRIX | D93: Heating:
A94: MATRIX | E94: Set Points:
A95: MATRIX | F95: Outdoor Air Temperature - Heating Mode | K95: HTG OAT | L95: 55°F | M95: 40°F | N95: 90°F
A96: MATRIX | F96: Leaving Air Temperature - Heating Mode | K96: HTG SAT | L96: 72°F | M96: 40°F | N96: 110°F
A97: MATRIX | F97: Zone Air Temperature - Heating Mode | K97: ZAT Heating SP | L97: 72°F | M97: 40°F | N97: 110°F
A98: MATRIX
A99: MATRIX | E99: Dead Bands:
A100: MATRIX | F100: OAT - Heating Mode - Lower/Upper Dead Band | K100: HTG OAT L/UDB | L100: 1°F/1°F
A101: MATRIX | F101: SAT - Heating Mode - Lower/Upper Dead Band | K101: HTG SAT L/UDB | L101: 2°F/2°F
A102: MATRIX | F102: ZAT - Heating Mode - Lower/Upper Dead Band | K102: HTG ZAT L/UDB | L102: 2°F/2°F
A103: MATRIX
A104: MATRIX | E104: Alarms:
A105: MATRIX | F105: SAT Heat Failure | K105: SAT HEAT FAIL | L105: 50°F | M105: 38°F | N105: 70°F
A106: MATRIX | F106: SAT Low Limit | K106: SAT LLIM | L106: 40°F | M106: 38°F | N106: 70°F
A107: MATRIX | F107: SAT High Limit - Electric Heat | K107: SAT HELIM | L107: 120°F | M107: 65°F | N107: 120°F
A108: MATRIX | F108: SAT High Limit - Gas Furnace | K108: SAT HGLIM | L108: 130°F | M108: 65°F | N108: 130°F
A109: MATRIX
A110: MATRIX | E110: Time Delays:
A111: MATRIX | F111: SAT Heat Fail Delay | K111: HEAT FAIL DELAY | L111: 15 min. | M111: 5 min. | N111: 30 min.
A112: MATRIX | F112: Low SAT Delay | K112: LOW SAT DELAY | L112: 15 min. | M112: 5 min. | N112: 30 min.
A113: MATRIX | F113: Gas Furnace Purge Time | K113: GAS PURGE | L113: 2 min. | M113: 1 min. | N113: 5 min.
A114: MATRIX
A115: END

Sheet Testing Mode
A1: START
A2: TM | B2: H | D2: TESTING MODE:
A3: TM | E3: · | F3: Testing Mode overrides all inputs and sensors, and should only be used for testing whether or not signals sent from the ALC controller will turn on, turn off, or control the various components of the unit.
A4: TM | E4: · | F4: Testing Mode is activated from the BACview display pad. Items for testing can be selected from the Testing Mode menu. Testing Mode can run for up to ## minutes (automatically adjusted) depending on these selections.
A5: TM | E5: · | F5: Upon Testing Mode activation, the unit is taken out of Occupied Mode, the Supply Fan and the Exhaust Fan (if existing) turn off, and the Outdoor Air Damper closes. Following a 30 second delay, a trigger signal is issued that switches the unit back into O
A6: TM | B6: OD | E6: · | F6: Outdoor Air Damper: Thirty seconds after the trigger signal, the OA damper will begin to open. As the OA damper opens, OADA auxiliary switches close. The OD will remain open until the end of the testing sequence.
A7: TM | B7: SFC | E7: · | F7: Supply Fan: Approximately 2-1/2 minutes after the trigger signal, the SF will turn on. The SF will remain on until the end of the testing sequence.
A8: TM | B8: SFVS | E8: · | F8: Supply Fan: Approximately 2-1/2 minutes after the trigger signal, the SF will turn on. The VFD will be cycled from 30Hz (50%) up to 48Hz (80%), back down to 30Hz, and finally up to 48Hz (80%). This process will take about 3 minutes. The SF will remain
A9: TM | B9: EF | E9: · | F9: Exhaust Fan: At the same time the SF starts, the EF will turn on. The SF will remain on until the end of the testing sequence.
A10: TM | B10: EFVS | E10: · | F10: Exhaust Fan: At the same time the SF starts, the EF will turn on. The VFD will be cycled from 30Hz (50%) up to 48Hz (80%) and back down to 30Hz. This process will take about 2 minutes. The EF will remain at 30Hz (50%) until the end of the testing sequ
A11: TM | B11: CLG1 | E11: · | F11: Cooling Mode: Approximately 5-1/2 minutes after the trigger signal, Y1 will turn on. The compressor will remain on until the end of this phase of the testing sequence.
A12: TM | B12: DCM1 | E12: · | F12: Cooling Mode: Approximately 5-1/2 minutes after the trigger signal, Y1 will turn on. The DCM will cycle the loading of the compressor from 100%, down to 10%, and finally up to 100%. This process will take about 2-1/2 minutes. The compressor will remai
A13: TM | B13: CLG2 | F13: · | G13: Approximately ## minutes (automatically adjusted) after the trigger signal, Y2 will turn on and compressor #2 will start. The compressor will remain on until the end of this phase of the testing sequence.
A14: TM | B14: DCM2 | F14: · | G14: Approximately ## minutes (automatically adjusted) after the trigger signal, Y2 will turn on and compressor #2 will start. The process for compressor #1 will be repeated for compressor #2. The compressor will remain at 100% until the end of this phase of
A15: TM | B15: HGRH | F15: · | G15: Hot Gas Reheat: Approximately ## minutes (automatically adjusted) after the trigger signal, the HGRH (RH) is enabled. The HGRH will remain on until the end of the Cooling Mode phase of the testing sequence.
A16: TM | B16: HGMOD | F16: · | G16: Hot Gas Reheat: Approximately ## minutes (automatically adjusted) after the trigger signal, the HGRH (RH) is enabled. It will modulate from 0% up to 100%, back down to 0%, and finally up to 100%. This process will take about 3 minutes. The HGRH will r
A17: TM | B17: HTGMOD | E17: · | F17: Heating Mode: Approximately ## minutes (automatically adjusted) after the trigger signal, heating is enabled. Heating will be modulated from 0% up to 100%, back down to 0%, and finally up to 100%. This process will take about 6 minutes.
A18: TM | B18: HTGSTG | E18: · | F18: Heating Mode: Approximately ## minutes (automatically adjusted) after the trigger signal, heating is enabled. Heating will be modulated from 1st Stage up to ##$$ Stage, back down to 1st Stage, and finally up to ##$$ Stage. This process will take about
A19: TM | B19: SF | E19: · | F19: When the sequence timer has reached ## minutes (automatically adjusted) elapsed time, all equipment will be turned off, except the OA damper and the SF. Then the unit will switch into Unoccupied Mode.
A20: TM | B20: SFEF | E20: · | F20: When the sequence timer has reached ## minutes (automatically adjusted) elapsed time, all equipment will be turned off, except the OA damper, the SF, and the EF. Then the unit will switch into Unoccupied Mode.
A21: TM | B21: SF | E21: · | F21: The OA damper and the SF will remain open or continue to run for an additional 2 minutes and then turn off or close. Upon final termination of all equipment (max. ## minutes, automatically adjusted) the testing sequence will be terminated and Testing Mod
A22: TM | B22: SFEF | E22: · | F22: The OA damper, the SF, and the EF will remain open or continue to run for an additional 2 minutes and then turn off or close. Upon final termination of all equipment (max. ## minutes, automatically adjusted) the testing sequence will be terminated and Te
A23: TM
A24: END

Sheet Points List
D1: Points List | F1: Hardware Points | J1: Software Points | P1: Show On Graphics
A2: START | F2: AI | G2: AO | H2: BI | I2: BO | J2: AV | K2: BV | L2: Loop | M2: Sched | N2: Trend | O2: Alarm
A3: POINTS | B3: CO2 | E3: Alternate CO2 Sensor - Optional | F3: X
A4: POINTS | B4: ZAT | E4: Alternate ZAT Sensor - Optional | F4: X
A5: POINTS | B5: ZRH | E5: Alternate Z-RH Sensor - Optional | F5: X
A6: POINTS | B6: DAC | E6: Digital-to-Analog Converter #1 Input | F6: X
A7: POINTS | B7: DAC | E7: Digital-to-Analog Converter #2 Input | F7: X
A8: POINTS | B8: DXLAT1 | E8: DX LAT #1 Sensor | F8: X
A9: POINTS | B9: DXLAT2 | E9: DX LAT #2 Sensor | F9: X
A10: POINTS | B10: ECRH | E10: EC-RH Sensor | F10: X
A11: POINTS | B11: ECAT | E11: ECAT Sensor | F11: X
A12: POINTS | B12: EFAMS | E12: Exhaust Fan AMS Sensor | F12: X
A13: POINTS | B13: EFDPT | E13: Exhaust Fan (Duct Static) DPT Sensor | F13: X
A14: POINTS | B14: MARH | E14: MA-RH Sensor | F14: X
A15: POINTS | B15: MAT | E15: MAT Sensor | F15: X
A16: POINTS | B16: OARH | E16: OA-RH Sensor | F16: X
A17: POINTS | B17: OAT | E17: OAT Sensor | F17: X
A18: POINTS | B18: OAAMS | E18: Outdoor Air AMS Sensor | F18: X
A19: POINTS | B19: RARH | E19: RA-RH Sensor | F19: X
A20: POINTS | B20: RAT | E20: RAT Sensor | F20: X
A21: POINTS | B21: SARH | E21: SA-RH Sensor | F21: X
A22: POINTS | B22: SAT | E22: SAT Sensor | F22: X
A23: POINTS | B23: SLT1 | E23: SLT #1 Sensor | F23: X
A24: POINTS | B24: SLT2 | E24: SLT #2 Sensor | F24: X
A25: POINTS | B25: SFAMS | E25: Supply Fan AMS Sensor | F25: X
A26: POINTS | B26: SFDPT | E26: Supply Fan DPT Sensor | F26: X
A27: POINTS | B27: WEXRH | E27: WEx-RH Sensor | F27: X
A28: POINTS | B28: WEXAT | E28: WExAT Sensor | F28: X
A29: POINTS | B29: ZNDPT | E29: Zone (Bldg. Static) DPT Sensor | F29: X
A30: POINTS | B30: CO2 | E30: ZS Sensor - CO2 | F30: X
A31: POINTS | B31: ZAT | E31: ZS Sensor - ZAT | F31: X
A32: POINTS | B32: ZRH | E32: ZS Sensor - Z-RH | F32: X
A33: POINTS | B33: C1DIG | E33: Compressor #1 Digital Output | G33: X
A34: POINTS | B34: C2DIG | E34: Compressor #2 Digital Output | G34: X
A35: POINTS | B35: ECWVFD | E35: EC Wheel Motor VFD Output | G35: X
A36: POINTS | B36: EFVS | E36: Exhaust Fan VFD Output | G36: X
A37: POINTS | B37: HEATMOD | E37: Heating Modulation Output | G37: X
A38: POINTS | B38: HGRHMOD | E38: HGRH Modulation Output | G38: X
A39: POINTS | B39: OADA | E39: OA Damper Angle Output | G39: X
A40: POINTS | B40: SFVS | E40: Supply Fan VFD Output | G40: X
A41: POINTS | B41: CFI | E41: Clogged Filter Indicator Input | H41: X | N41: X
A42: POINTS | B42: COS | E42: Condensate Overflow Switch Input | H42: X | N42: X
A43: POINTS | B43: C1 | E43: Comp. #1 Current Sensor Input | H43: X | N43: X
A44: POINTS | B44: C2 | E44: Comp. #2 Current Sensor Input | H44: X | N44: X
A45: POINTS | B45: DR1 | E45: Defrost Relay #1 Input | H45: X | N45: X
A46: POINTS | B46: DR2 | E46: Defrost Relay #2 Input | H46: X | N46: X
A47: POINTS | B47: ECWCS | E47: ECW Motor Current Sensor Input | H47: X | N47: X
A48: POINTS | B48: EMRSD | E48: Energy Mgt. Relay / Emerg. Shutdown Input | H48: X | N48: X
A49: POINTS | B49: EF | E49: Exhaust Fan APS Input | H49: X | N49: X
A50: POINTS | B50: FZT | E50: Freezestat Input | H50: X | N50: X
A51: POINTS | B51: C1 | E51: High Pressure Switch #1 Input | H51: X | N51: X
A52: POINTS | B52: C2 | E52: High Pressure Switch #2 Input | H52: X | N52: X
A53: POINTS | B53: C1 | E53: Low Pressure Switch #1 Input | H53: X | N53: X
A54: POINTS | B54: C2 | E54: Low Pressure Switch #2 Input | H54: X | N54: X
A55: POINTS | B55: OADA | E55: OADA Auxiliary Contact (Adj.) Input | H55: X | N55: X
A56: POINTS | B56: SD | E56: Smoke Detector Input | H56: X | N56: X
A57: POINTS | B57: SF | E57: Supply Fan APS Input | H57: X | N57: X
A58: POINTS | B58: SS | E58: Start / Stop Switch Input | H58: X | N58: X
A59: POINTS | B59: WFS | E59: Water Flow Switch Status | H59: X | N59: X
A60: POINTS | B60: C1 | E60: Compressor #1 Enable Output | I60: X
A61: POINTS | B61: C2 | E61: Compressor #2 Enable Output | I61: X
A62: POINTS | B62: ECWEN | E62: EC Wheel Motor Enable Output | I62: X
A63: POINTS | B63: EF | E63: Exhaust Fan Enable Output | I63: X
A64: POINTS | B64: STDHTG | E64: Heating Enable Output | I64: X
A65: POINTS | B65: HGRHEN | E65: Hot Gas Reheat Enable Output | I65: X
A66: POINTS | B66: ODEN | E66: Outdoor Air Damper Enable Output | I66: X
A67: POINTS | B67: RVEN | E67: Rev. Valve Enable Output | I67: X
A68: POINTS | B68: SF | E68: Supply Fan Enable Output | I68: X
A69: POINTS | B69: CO2 | E69: Carbon Dioxide Status | J69: X | N69: X
A70: POINTS | B70: C1DIG | E70: Compressor #1 Digital Percentage Status | J70: X | N70: X
A71: POINTS | B71: C2DIG | E71: Compressor #2 Digital Percentage Status | J71: X | N71: X
A72: POINTS | B72: DXLAT1 | E72: DX Leaving Air Temperature #1 Status | J72: X | N72: X
A73: POINTS | B73: DXLAT2 | E73: DX Leaving Air Temperature #2 Status | J73: X | N73: X
A74: POINTS | B74: ECDP | E74: Entering Coil Air Dew Point Status | J74: X | N74: X
A75: POINTS | B75: ECAE | E75: Entering Coil Air Enthalpy Status | J75: X | N75: X
A76: POINTS | B76: ECRH | E76: Entering Coil Air Relative Humidity Status | J76: X | N76: X
A77: POINTS | B77: ECAT | E77: Entering Coil Air Temperature Status | J77: X | N77: X
A78: POINTS | B78: ECWVFD | E78: ECW Motor VFD Frequency Status | J78: X | N78: X
A79: POINTS | B79: EFAMS | E79: Exhaust Fan AMS Status | J79: X | N79: X
A80: POINTS | B80: EFDPT | E80: Exhaust Fan (Duct Static) DPT Status | J80: X | N80: X
A81: POINTS | B81: EFVS | E81: Exhaust Fan VFD Frequency Status | J81: X | N81: X
A82: POINTS | B82: HEATMOD | E82: Heating Modulation Percentage Status | J82: X | N82: X
A83: POINTS | B83: HGRHMOD | E83: HGRH Modulation Percentage Status | J83: X | N83: X
A84: POINTS | B84: MADP | E84: Mixed Air Dew Point Status | J84: X | N84: X
A85: POINTS | B85: MAE | E85: Mixed Air Enthalpy Status | J85: X | N85: X
A86: POINTS | B86: MARH | E86: Mixed Air Relative Humidity Status | J86: X | N86: X
A87: POINTS | B87: MAT | E87: Mixed Air Temperature Status | J87: X | N87: X
A88: POINTS | B88: OCC | E88: Occupancy Control Options | J88: X
A89: POINTS | B89: OAAMS | E89: Outdoor Air AMS Status | J89: X | N89: X
A90: POINTS | B90: OADA | E90: Outdoor Air Damper Angle Status | J90: X | N90: X
A91: POINTS | B91: OADP | E91: Outdoor Air Dew Point Status | J91: X | N91: X
A92: POINTS | B92: OAE | E92: Outdoor Air Enthalpy Status | J92: X | N92: X
A93: POINTS | B93: OARH | E93: Outdoor Air Relative Humidity Status | J93: X | N93: X
A94: POINTS | B94: OAT | E94: Outdoor Air Temperature Status | J94: X | N94: X
A95: POINTS | B95: RADP | E95: Return Air Dew Point Status | J95: X | N95: X
A96: POINTS | B96: RAE | E96: Return Air Enthalpy Status | J96: X | N96: X
A97: POINTS | B97: RADA | E97: Return Air Damper Angle Status | J97: X | N97: X
A98: POINTS | B98: RARH | E98: Return Air Relative Humidity Status | J98: X | N98: X
A99: POINTS | B99: RAT | E99: Return Air Temperature Status | J99: X | N99: X
A100: POINTS | B100: SLT1 | E100: Suction Line Temperature #1 Status | J100: X | N100: X
A101: POINTS | B101: SLT2 | E101: Suction Line Temperature #2 Status | J101: X | N101: X
A102: POINTS | B102: SADP | E102: Supply Air Dew Point Status | J102: X | N102: X
A103: POINTS | B103: SAE | E103: Supply Air Enthalpy Status | J103: X | N103: X
A104: POINTS | B104: SARH | E104: Supply Air Relative Humidity Status | J104: X | N104: X
A105: POINTS | B105: SAT | E105: Supply Air Temperature Status | J105: X | N105: X
A106: POINTS | B106: SFAMS | E106: Supply Fan AMS Status | J106: X | N106: X
A107: POINTS | B107: SFDPT | E107: Supply Fan DPT Status | J107: X | N107: X
A108: POINTS | B108: SFVS | E108: Supply Fan VFD Frequency Status | J108: X | N108: X
A109: POINTS | B109: WEXADP | E109: Wheel Exhaust Air Dew Point Status | J109: X | N109: X
A110: POINTS | B110: WEXAE | E110: Wheel Exhaust Air Enthalpy Status | J110: X | N110: X
A111: POINTS | B111: WEXRH | E111: Wheel Exhaust Air Relative Humidity Status | J111: X | N111: X
A112: POINTS | B112: WEXAT | E112: Wheel Exhaust Air Temperature Status | J112: X | N112: X
A113: POINTS | B113: ZADP | E113: Zone Air Dew Point Status | J113: X | N113: X
A114: POINTS | B114: ZAE | E114: Zone Air Enthalpy Status | J114: X | N114: X
A115: POINTS | B115: ZRH | E115: Zone Air Relative Humidity Status | J115: X | N115: X
A116: POINTS | B116: ZAT | E116: Zone Air Temperature Status | J116: X | N116: X
A117: POINTS | B117: ZNDPT | E117: Zone (Bldg. Static) DPT Status | J117: X | N117: X
A118: POINTS | B118: ARCH | E118: Archive Now | K118: X
A119: POINTS | B119: AUXHTG | E119: Aux. Heating Enable Status | K119: X | N119: X
A120: POINTS | B120: CFI | E120: Clogged Filter Indicator Status | K120: X | N120: X
A121: POINTS | B121: C1 | E121: Compressor #1 Current Sensor Status | K121: X | N121: X
A122: POINTS | B122: C1 | E122: Compressor #1 Enable Status | K122: X | N122: X
A123: POINTS | B123: C2 | E123: Compressor #2 Current Sensor Status | K123: X | N123: X
A124: POINTS | B124: C2 | E124: Compressor #2 Enable Status | K124: X | N124: X
A125: POINTS | B125: DR1 | E125: Defrost Relay #1 Status | K125: X | N125: X
A126: POINTS | B126: DR2 | E126: Defrost Relay #2 Status | K126: X | N126: X
A127: POINTS | B127: ECWCS | E127: ECW Motor Current Sensor Status | K127: X | N127: X
A128: POINTS | B128: ECWEN | E128: ECW Motor Enable Status | K128: X | N128: X
A129: POINTS | B129: EHTG | E129: Emerg. Heating Enable Status | K129: X | N129: X
A130: POINTS | B130: EMSD | E130: Emergency Shutdown Status (N.C.) | K130: X | N130: X
A131: POINTS | B131: EF | E131: Exhaust Fan APS Status | K131: X | N131: X
A132: POINTS | B132: EF | E132: Exhaust Fan Enable Status | K132: X | N132: X
A133: POINTS | B133: FZT | E133: Freezestat Status (N.C.) | K133: X | N133: X
A134: POINTS | B134: C1 | E134: High Pressure Switch #1 Status | K134: X | N134: X
A135: POINTS | B135: C2 | E135: High Pressure Switch #2 Status | K135: X | N135: X
A136: POINTS | B136: HGRHEN | E136: Hot Gas Reheat Enable Status | K136: X | N136: X
A137: POINTS | B137: C1 | E137: Low Pressure Switch #1 Status | K137: X | N137: X
A138: POINTS | B138: C2 | E138: Low Pressure Switch #2 Status | K138: X | N138: X
A139: POINTS | B139: OCC | E139: Occupied Mode Enable | K139: X
A140: POINTS | B140: OCC | E140: Occupancy Status | K140: X | N140: X
A141: POINTS | B141: ODEN | E141: Outdoor Air Damper Enable Status | K141: X | N141: X
A142: POINTS | B142: RVASHP | E142: Reversing Valve - ASHP | K142: X | N142: X
A143: POINTS | B143: RVWSHP | E143: Reversing Valve - WSHP | K143: X | N143: X
A144: POINTS | B144: SD | E144: Smoke Detector Status (N.C.) | K144: X | N144: X
A145: POINTS | B145: SS | E145: Start / Stop Switch Status | K145: X | N145: X
A146: POINTS | B146: STDHTG | E146: Std. Heating Enable Status | K146: X | N146: X
A147: POINTS | B147: SF | E147: Supply Fan APS Status | K147: X | N147: X
A148: POINTS | B148: SF | E148: Supply Fan Enable Status | K148: X | N148: X
A149: POINTS | B149: WFS | E149: Water Flow Switch Status | K149: X | N149: X
A150: POINTS | B150: CFI | E150: Clogged Filter Indicator Alarm | O150: X
A151: POINTS | B151: CO2 | E151: CO2 Sensor Failure | O151: X
A152: POINTS | B152: C1 | E152: Compressor #1 Alarm | O152: X
A153: POINTS | B153: C1 | E153: Compressor #1 in Hand | O153: X
A154: POINTS | B154: C1 | E154: Compressor #1 Stop | O154: X
A155: POINTS | B155: C2 | E155: Compressor #2 Alarm | O155: X
A156: POINTS | B156: C2 | E156: Compressor #2 in Hand | O156: X
A157: POINTS | B157: C2 | E157: Compressor #2 Stop | O157: X
A158: POINTS | B158: DXLAT1 | E158: DX LAT #1 Alarm | O158: X
A159: POINTS | B159: DXLAT1 | E159: DX LAT #1 Sensor Failure | O159: X
A160: POINTS | B160: DXLAT1 | E160: DX LAT #1 Stop | O160: X
A161: POINTS | B161: DXLAT2 | E161: DX LAT #2 Alarm | O161: X
A162: POINTS | B162: DXLAT2 | E162: DX LAT #2 Sensor Failure | O162: X
A163: POINTS | B163: DXLAT2 | E163: DX LAT #2 Stop | O163: X
A164: POINTS | B164: ECAT | E164: ECAT Sensor Failure | O164: X
A165: POINTS | B165: ECRH | E165: EC-RH Sensor Failure | O165: X
A166: POINTS | B166: EMSD | E166: Emergency Shutdown Alarm | O166: X
A167: POINTS | B167: EF | E167: Exhaust Fan Alarm | O167: X
A168: POINTS | B168: EF | E168: Exhaust Fan in Hand | O168: X
A169: POINTS | B169: FZT | E169: Freeze Stat Alarm | O169: X
A170: POINTS | B170: HEATFAIL | E170: Heat Failure | O170: X
A171: POINTS | B171: CO2 | E171: High CO2 Alarm | O171: X
A172: POINTS | B172: HIGHSAT | E172: High SAT Alarm | O172: X
A173: POINTS | B173: C1 | E173: High Pressure Switch #1 Alarm | O173: X
A174: POINTS | B174: C1 | E174: High Pressure Switch #1 Stop | O174: X
A175: POINTS | B175: C2 | E175: High Pressure Switch #2 Alarm | O175: X
A176: POINTS | B176: C2 | E176: High Pressure Switch #2 Stop | O176: X
A177: POINTS | B177: C1 | E177: Low Pressure Switch #1 Alarm | O177: X
A178: POINTS | B178: C1 | E178: Low Pressure Switch #1 Stop | O178: X
A179: POINTS | B179: C2 | E179: Low Pressure Switch #2 Alarm | O179: X
A180: POINTS | B180: C2 | E180: Low Pressure Switch #2 Stop | O180: X
A181: POINTS | B181: SAT | E181: Low SAT Alarm | O181: X
A182: POINTS | B182: MARH | E182: MA-RH Sensor Failure | O182: X
A183: POINTS | B183: MAT | E183: MAT Sensor Failure | O183: X
A184: POINTS | B184: OARH | E184: OA-RH Sensor Failure | O184: X
A185: POINTS | B185: OAT | E185: OAT Sensor Failure | O185: X
A186: POINTS | B186: RARH | E186: RA-RH Sensor Failure | O186: X
A187: POINTS | B187: RAT | E187: RAT Sensor Failure | O187: X
A188: POINTS | B188: SARH | E188: SA-RH Sensor Failure | O188: X
A189: POINTS | B189: SAT | E189: SAT Sensor Failure | O189: X
A190: POINTS | B190: SPOVER | E190: Set Point Overlap Alarm | O190: X
A191: POINTS | B191: SLT1 | E191: SLT #1 Alarm | O191: X
A192: POINTS | B192: SLT1 | E192: SLT #1 Sensor Failure | O192: X
A193: POINTS | B193: SLT1 | E193: SLT #1 Stop | O193: X
A194: POINTS | B194: SLT2 | E194: SLT #2 Alarm | O194: X
A195: POINTS | B195: SLT2 | E195: SLT #2 Sensor Failure | O195: X
A196: POINTS | B196: SLT2 | E196: SLT #2 Stop | O196: X
A197: POINTS | B197: SD | E197: Smoke Detector Alarm | O197: X
A198: POINTS | B198: SF | E198: Supply Fan Alarm | O198: X
A199: POINTS | B199: SF | E199: Supply Fan in Hand | O199: X
A200: POINTS | B200: WFS | E200: Water Flow Switch Alarm | O200: X
... 6 more rows

Sheet Mapping Points
D1: Mapping Points - Addison Multiple Unit Styles, Multiple Unit Types
D3: Point Name | E3: Object Name | F3: Read Write | G3: BACnet | I3: Modbus | K3: N2 | M3: LonWorks
A4: START | G4: Type | H4: Object ID | I4: Type | J4: Number | K4: Type | L4: Address | M4: NV # | N4: NV Name | O4: SNVT | P4: NV # | Q4: Chr. Qty.
A5: MAP | D5: BAS Comm. Lost Delay | E5: bas_comm_lost_delay | F5: R/W | G5: AV | H5: 103 | I5: Holding Register | J5: 40003 | K5: ADF | L5: 1 | M5: 0 | P5: =IF(N5="","",SUBTOTAL(103, $N$5:N5)) ->  | Q5: =IF(N5="","",LEN(N5)) -> 
A6: MAP | D6: Time Remaining | E6: time_remain | F6: R | G6: AV | H6: 104 | I6: Input Register | J6: 30001 | K6: ADF | L6: 2 | M6: 0 | P6: =IF(N6="","",SUBTOTAL(103, $N$5:N6)) -> 
A7: MAP | D7: Operating Condition | E7: op_cond | F7: R | G7: AV | H7: 111 | I7: Input Register | J7: =J6+2 -> 30003 | K7: ADF | L7: 3 | M7: 0 | P7: =IF(N7="","",SUBTOTAL(103, $N$5:N7)) -> 
A8: MAP | D8: Operating Mode | E8: op_mode | F8: R | G8: AV | H8: 112 | I8: Input Register | J8: =J7+2 -> 30005 | K8: ADF | L8: 4 | M8: 0 | P8: =IF(N8="","",SUBTOTAL(103, $N$5:N8)) -> 
A9: MAP | B9: CLGZAT | D9: Zone Set Points | E9: clg_zat_sp_o | F9: R/W | G9: AV | H9: 200 | I9: Holding Register | J9: 40011 | K9: ADF | L9: 11 | M9: 0 | N9: nviClgZatSpO | O9: SNVT_temp_p(105) | P9: =IF(N9="","",SUBTOTAL(103, $N$5:N9)) -> 1 | Q9: 12
A10: MAP | B10: HTGZAT | D10: Zone Set Points | E10: htg_zat_sp_o | F10: R/W | G10: AV | H10: 201 | I10: Holding Register | J10: 40013 | K10: ADF | L10: 12 | M10: 0 | N10: nviHtgZatSpO | O10: SNVT_temp_p(105) | P10: =IF(N10="","",SUBTOTAL(103, $N$5:N10)) -> 2 | Q10: 12
A11: MAP | B11: CLGZAT | D11: Zone Set Points | E11: clg_zat_sp_u | F11: R/W | G11: AV | H11: 202 | I11: Holding Register | J11: 40015 | K11: ADF | L11: 13 | N11: nviClgZatSpU | O11: SNVT_temp_p(105) | P11: =IF(N11="","",SUBTOTAL(103, $N$5:N11)) -> 3 | Q11: 12
A12: MAP | B12: HTGZAT | D12: Zone Set Points | E12: htg_zat_sp_u | F12: R/W | G12: AV | H12: 203 | I12: Holding Register | J12: 40017 | K12: ADF | L12: 14 | N12: nviHtgZatSpU | O12: SNVT_temp_p(105) | P12: =IF(N12="","",SUBTOTAL(103, $N$5:N12)) -> 4 | Q12: 12
A13: MAP | B13: CLGZAT | D13: Zone Set Points | E13: clg_zat_sp | F13: R | G13: AV | H13: 204 | I13: Holding Register | J13: 40019 | K13: ADF | L13: 15 | M13: 0 | P13: =IF(N13="","",SUBTOTAL(103, $N$5:N13)) -> 
A14: MAP | B14: HTGZAT | D14: Zone Set Points | E14: htg_zat_sp | F14: R | G14: AV | H14: 205 | I14: Holding Register | J14: 40021 | K14: ADF | L14: 16 | M14: 0 | P14: =IF(N14="","",SUBTOTAL(103, $N$5:N14)) -> 
A15: MAP | B15: HTGZAT | D15: Heating Demand Limiting Adjust. | E15: htg_dem_adj | F15: R/W | G15: AV | H15: 206 | I15: Holding Register | J15: 40023 | K15: ADF | L15: 17 | P15: =IF(N15="","",SUBTOTAL(103, $N$5:N15)) -> 
A16: MAP | B16: CLGZAT | D16: Cooling Demand Limiting Adjust. | E16: clg_dem_adj | F16: R/W | G16: AV | H16: 207 | I16: Holding Register | J16: 40025 | K16: ADF | L16: 18 | P16: =IF(N16="","",SUBTOTAL(103, $N$5:N16)) -> 
A17: MAP | B17: ZAT | D17: ZAT From BAS | E17: zat_bas | F17: R/W | G17: AV | H17: 208 | I17: Holding Register | J17: =J16+2 -> 40027 | K17: ADF | L17: 19 | M17: 0 | N17: nviZatBas | O17: SNVT_temp_p(105) | P17: =IF(N17="","",SUBTOTAL(103, $N$5:N17)) -> 5 | Q17: =IF(N17="","",LEN(N17)) -> 9
A18: MAP | B18: ZAT | D18: ZAT Status | E18: zat_stat | F18: R | G18: AV | H18: 209 | I18: Input Register | J18: 30011 | K18: ADF | L18: 20 | M18: 0 | N18: nvoZatStat | O18: SNVT_temp_p(105) | P18: =IF(N18="","",SUBTOTAL(103, $N$5:N18)) -> 6 | Q18: 10
A19: MAP | B19: ZRH | D19: Z-RH From BAS | E19: zrh_bas | F19: R/W | G19: AV | H19: 211 | I19: Holding Register | J19: =J17+2 -> 40029 | K19: ADF | L19: 21 | M19: 0 | N19: nviZrhBas | O19: SNVT_lev_percent(81) | P19: =IF(N19="","",SUBTOTAL(103, $N$5:N19)) -> 7 | Q19: =IF(N19="","",LEN(N19)) -> 9
A20: MAP | B20: ZRH | D20: Z-RH Status | E20: zrh_stat | F20: R | G20: AV | H20: 212 | I20: Input Register | J20: =J18+2 -> 30013 | K20: ADF | L20: 22 | M20: 0 | N20: nvoZrhStat | O20: SNVT_lev_percent(81) | P20: =IF(N20="","",SUBTOTAL(103, $N$5:N20)) -> 8 | Q20: 10
A21: MAP | B21: CO2 | D21: CO2 From BAS | E21: co2_bas | F21: R/W | G21: AV | H21: 213 | I21: Holding Register | J21: =J19+2 -> 40031 | K21: ADF | L21: 23 | M21: 0 | N21: nviCo2Bas | O21: SNVT_ppm(29) | P21: =IF(N21="","",SUBTOTAL(103, $N$5:N21)) -> 9 | Q21: =IF(N21="","",LEN(N21)) -> 9
A22: MAP | B22: CO2 | D22: CO2 Status | E22: co2_stat | F22: R | G22: AV | H22: 214 | I22: Input Register | J22: =J20+2 -> 30015 | K22: ADF | L22: 24 | M22: 0 | N22: nvoCo2Stat | O22: SNVT_ppm(29) | P22: =IF(N22="","",SUBTOTAL(103, $N$5:N22)) -> 10 | Q22: 10
A23: MAP | B23: CO2 | D23: CO2 Set Point #1 | E23: co2_sp1 | F23: R/W | G23: AV | H23: 215 | I23: Holding Register | J23: =J21+2 -> 40033 | K23: ADF | L23: 25 | M23: 0 | P23: =IF(N23="","",SUBTOTAL(103, $N$5:N23)) -> 
A24: MAP | B24: CO2 | D24: CO2 Set Point #2 | E24: co2_sp2 | F24: R/W | G24: AV | H24: 216 | I24: Holding Register | J24: =J23+2 -> 40035 | K24: ADF | L24: 26 | M24: 0 | N24: nviCo2Sp | O24: SNVT_ppm(29) | P24: =IF(N24="","",SUBTOTAL(103, $N$5:N24)) -> 11 | Q24: 8
A25: MAP | B25: CO2 | D25: CO2 Dead Band | E25: co2_db | F25: R/W | G25: AV | H25: 217 | I25: Holding Register | J25: =J24+2 -> 40037 | K25: ADF | L25: 27 | M25: 0 | P25: =IF(N25="","",SUBTOTAL(103, $N$5:N25)) -> 
A26: MAP | B26: ECAT | D26: ECAT Status | E26: ecat_stat | F26: R | G26: AV | H26: 219 | I26: Input Register | J26: 30021 | K26: ADF | L26: 29 | M26: 0 | N26: nvoEcatStat | O26: SNVT_temp_p(105) | P26: =IF(N26="","",SUBTOTAL(103, $N$5:N26)) -> 12 | Q26: 11
A27: MAP | B27: ECRH | D27: EC-RH Status | E27: ecrh_stat | F27: R | G27: AV | H27: 221 | I27: Input Register | J27: 30023 | K27: ADF | L27: 30 | M27: 0 | N27: nvoEcrhStat | O27: SNVT_lev_percent(81) | P27: =IF(N27="","",SUBTOTAL(103, $N$5:N27)) -> 13 | Q27: 11
A28: MAP | B28: MAT | D28: MAT Status | E28: mat_stat | F28: R | G28: AV | H28: 219 | I28: Input Register | J28: 30021 | K28: ADF | L28: 29 | M28: 0 | N28: nvoMatStat | O28: SNVT_temp_p(105) | P28: =IF(N28="","",SUBTOTAL(103, $N$5:N28)) -> 14 | Q28: 10
A29: MAP | B29: MARH | D29: MA-RH Status | E29: marh_stat | F29: R | G29: AV | H29: 221 | I29: Input Register | J29: 30023 | K29: ADF | L29: 30 | M29: 0 | N29: nvoMarhStat | O29: SNVT_lev_percent(81) | P29: =IF(N29="","",SUBTOTAL(103, $N$5:N29)) -> 15 | Q29: 11
A30: MAP | B30: OAT | D30: OAT From BAS | E30: oat_bas | F30: R/W | G30: AV | H30: 222 | I30: Holding Register | J30: 40041 | K30: ADF | L30: 31 | M30: 0 | N30: nviOatBas | O30: SNVT_temp_p(105) | P30: =IF(N30="","",SUBTOTAL(103, $N$5:N30)) -> 16 | Q30: =IF(N30="","",LEN(N30)) -> 9
A31: MAP | B31: OAT | D31: OAT Status | E31: oat_stat | F31: R | G31: AV | H31: 225 | I31: Input Register | J31: =J29+2 -> 30025 | K31: ADF | L31: 32 | M31: 0 | N31: nvoOatStat | O31: SNVT_temp_p(105) | P31: =IF(N31="","",SUBTOTAL(103, $N$5:N31)) -> 17 | Q31: 10
A32: MAP | B32: OARH | D32: OA-RH From BAS | E32: oarh_bas | F32: R/W | G32: AV | H32: 223 | I32: Holding Register | J32: 40043 | K32: ADF | L32: 33 | M32: 0 | N32: nviOarhBas | O32: SNVT_lev_percent(81) | P32: =IF(N32="","",SUBTOTAL(103, $N$5:N32)) -> 18 | Q32: 10
A33: MAP | B33: OARH | D33: OA-RH Status | E33: oarh_stat | F33: R | G33: AV | H33: 227 | I33: Input Register | J33: =J31+2 -> 30027 | K33: ADF | L33: 34 | M33: 0 | N33: nvoOarhStat | O33: SNVT_lev_percent(81) | P33: =IF(N33="","",SUBTOTAL(103, $N$5:N33)) -> 19 | Q33: 11
A34: MAP | B34: RAT | D34: RAT Status | E34: rat_stat | F34: R | G34: AV | H34: =H33+2 -> 229 | I34: Input Register | J34: =J33+2 -> 30029 | K34: ADF | L34: 35 | M34: 0 | N34: nvoRatStat | O34: SNVT_temp_p(105) | P34: =IF(N34="","",SUBTOTAL(103, $N$5:N34)) -> 20 | Q34: 10
A35: MAP | B35: RARH | D35: RA-RH Status | E35: rarh_stat | F35: R | G35: AV | H35: 231 | I35: Input Register | J35: 30031 | K35: ADF | L35: 36 | M35: 0 | N35: nvoRarhStat | O35: SNVT_lev_percent(81) | P35: =IF(N35="","",SUBTOTAL(103, $N$5:N35)) -> 21 | Q35: 11
A36: MAP | B36: SAT | D36: SAT Status | E36: sat_stat | F36: R | G36: AV | H36: 233 | I36: Input Register | J36: 30033 | K36: ADF | L36: 37 | M36: 0 | N36: nvoSatStat | O36: SNVT_temp_p(105) | P36: =IF(N36="","",SUBTOTAL(103, $N$5:N36)) -> 22 | Q36: 10
A37: MAP | B37: SARH | D37: SA-RH Status | E37: sarh_stat | F37: R | G37: AV | H37: 235 | I37: Input Register | J37: 30035 | K37: ADF | L37: 38 | M37: 0 | N37: nvoSarhStat | O37: SNVT_lev_percent(81) | P37: =IF(N37="","",SUBTOTAL(103, $N$5:N37)) -> 23 | Q37: 11
A38: MAP | B38: WEXAT | D38: WExAT Status | E38: wexat_stat | F38: R | G38: AV | H38: 237 | I38: Input Register | J38: 30037 | K38: ADF | L38: 39 | M38: 0 | N38: nvoWexatStat | O38: SNVT_temp_p(105) | P38: =IF(N38="","",SUBTOTAL(103, $N$5:N38)) -> 24 | Q38: 12
A39: MAP | B39: WEXRH | D39: WEx-RH Status | E39: wexrh_stat | F39: R | G39: AV | H39: 239 | I39: Input Register | J39: 30039 | K39: ADF | L39: 40 | M39: 0 | N39: nvoWexrhStat | O39: SNVT_lev_percent(81) | P39: =IF(N39="","",SUBTOTAL(103, $N$5:N39)) -> 25 | Q39: 12
A40: MAP | B40: DXLAT1 | D40: DX LAT #1 Status | E40: dx_lat1_stat | F40: R | G40: AV | H40: 241 | I40: Input Register | J40: 30041 | K40: ADF | L40: 41 | M40: 0 | N40: nvoDxLat2Stat | O40: SNVT_temp_p(105) | P40: =IF(N40="","",SUBTOTAL(103, $N$5:N40)) -> 26 | Q40: 13
A41: MAP | B41: DXLAT2 | D41: DX LAT #2 Status | E41: dx_lat2_stat | F41: R | G41: AV | H41: 243 | I41: Input Register | J41: 30043 | K41: ADF | L41: 42 | M41: 0 | N41: nvoDxLat2Stat | O41: SNVT_temp_p(105) | P41: =IF(N41="","",SUBTOTAL(103, $N$5:N41)) -> 27 | Q41: 13
A42: MAP | B42: SLT1 | D42: SLT #1 Status | E42: slt1_stat | F42: R | G42: AV | H42: 241 | I42: Input Register | J42: 30041 | K42: ADF | L42: 41 | M42: 0 | N42: nvoSlt1Stat | O42: SNVT_temp_p(105) | P42: =IF(N42="","",SUBTOTAL(103, $N$5:N42)) -> 28 | Q42: 11
A43: MAP | B43: LPT1 | D43: LPT #1 Status | E43: lpt1_stat | F43: R | G43: AV | H43: =H42+2 -> 243 | I43: Input Register | J43: =J42+2 -> 30043 | K43: ADF | L43: 42 | M43: 0 | N43: nvoLpt1Stat | O43: SNVT_temp_p(105) | P43: =IF(N43="","",SUBTOTAL(103, $N$5:N45)) -> 31 | Q43: =IF(N43="","",LEN(N43)) -> 11
A44: MAP | B44: SLP1 | D44: SLP #1 Status | E44: slp1_stat | F44: R | G44: AV | H44: =H43+2 -> 245 | I44: Input Register | J44: =J43+2 -> 30045 | K44: ADF | L44: 43 | M44: 0 | N44: nvoSlp1Stat | O44: SNVT_count_inc(9) | P44: =IF(N44="","",SUBTOTAL(103, $N$5:N45)) -> 31 | Q44: =IF(N44="","",LEN(N44)) -> 11
A45: MAP | B45: DLP1 | D45: DLP #1 Status | E45: dlp1_stat | F45: R | G45: AV | H45: =H44+2 -> 247 | I45: Input Register | J45: =J44+2 -> 30047 | K45: ADF | L45: 44 | M45: 0 | N45: nvoDlp1Stat | O45: SNVT_count_inc(9) | P45: =IF(N45="","",SUBTOTAL(103, $N$5:N45)) -> 31 | Q45: =IF(N45="","",LEN(N45)) -> 11
A46: MAP | B46: SLT2 | D46: SLT #2 Status | E46: slt2_stat | F46: R | G46: AV | H46: 251 | I46: Input Register | J46: 30051 | K46: ADF | L46: 46 | M46: 0 | N46: nvoSlt2Stat | O46: SNVT_temp_p(105) | P46: =IF(N46="","",SUBTOTAL(103, $N$5:N46)) -> 32 | Q46: =IF(N46="","",LEN(N46)) -> 11
A47: MAP | B47: EFDPT | D47: EF DPT Status | E47: ef_dpt_stat | F47: R | G47: AV | H47: 253 | I47: Input Register | J47: 30053 | K47: ADF | L47: 47 | M47: 0 | N47: nvoEfDptStat | O47: SNVT_press_p(113) | P47: =IF(N47="","",SUBTOTAL(103, $N$5:N47)) -> 33 | Q47: 12
A48: MAP | B48: SFDPT | D48: SF DPT Status | E48: sf_dpt_stat | F48: R | G48: AV | H48: =H47+2 -> 255 | I48: Input Register | J48: =J47+2 -> 30055 | K48: ADF | L48: 48 | M48: 0 | N48: nvoSfDptStat | O48: SNVT_press_p(113) | P48: =IF(N48="","",SUBTOTAL(103, $N$5:N49)) -> 35 | Q48: =IF(N48="","",LEN(N48)) -> 12
A49: MAP | B49: ZNDPT | D49: ZN DPT Status | E49: zn_dpt_stat | F49: R | G49: AV | H49: 257 | I49: Input Register | J49: =J48+2 -> 30057 | K49: ADF | L49: 49 | M49: 0 | N49: nvoZnDptStat | O49: SNVT_press_p(113) | P49: =IF(N49="","",SUBTOTAL(103, $N$5:N49)) -> 35 | Q49: =IF(N49="","",LEN(N49)) -> 12
A50: MAP | B50: EFAMS | D50: EF AMS Status | E50: ef_ams_stat | F50: R | G50: AV | H50: 259 | I50: Input Register | J50: =J49+2 -> 30059 | K50: ADF | L50: 50 | M50: 0 | N50: nvoEfAmsStat | O50: SNVT_flow(15) | P50: =IF(N50="","",SUBTOTAL(103, $N$5:N50)) -> 36 | Q50: 12
A51: MAP | B51: OAAMS | D51: OA AMS Status | E51: oa_ams_stat | F51: R | G51: AV | H51: 261 | I51: Input Register | J51: 30061 | K51: ADF | L51: 51 | M51: 0 | N51: nvoOaAmsStat | O51: SNVT_flow(15) | P51: =IF(N51="","",SUBTOTAL(103, $N$5:N51)) -> 37 | Q51: =IF(N51="","",LEN(N51)) -> 12
A52: MAP | B52: SFAMS | D52: SF AMS Status | E52: sf_ams_stat | F52: R | G52: AV | H52: =H51+2 -> 263 | I52: Input Register | J52: =J51+2 -> 30063 | K52: ADF | L52: 52 | M52: 0 | N52: nvoSfAmsStat | O52: SNVT_flow(15) | P52: =IF(N52="","",SUBTOTAL(103, $N$5:N52)) -> 38 | Q52: 12
A53: MAP | B53: SFAMSLC | D53: SF AMS Status | E53: sf_ams_stat | F53: R | G53: AV | H53: 263 | I53: Input Register | J53: 30063 | K53: ADF | L53: 52 | M53: 0 | N53: nvoSfAmsStat | O53: SNVT_flow(15) | P53: =IF(N53="","",SUBTOTAL(103, $N$5:N53)) -> 39 | Q53: =IF(N53="","",LEN(N53)) -> 12
A54: MAP | B54: ECDP | D54: Entering Coil Air Dew Point | E54: ec_dewpoint | F54: R | G54: AV | H54: 264 | I54: Input Register | J54: =J52+2 -> 30065 | K54: ADF | L54: 53 | M54: 0 | N54: nvoEcDewpoint | O54: SNVT_temp_p(105) | P54: =IF(N54="","",SUBTOTAL(103, $N$5:N54)) -> 40 | Q54: =IF(N54="","",LEN(N54)) -> 13
A55: MAP | B55: ECAE | D55: Entering Coil Air Enthalpy | E55: ec_enthalpy | F55: R | G55: AV | H55: 265 | I55: Input Register | J55: 30067 | K55: ADF | L55: 54 | M55: 0 | N55: nvoEcEnthalpy | O55: SNVT_enthalpy(153) | P55: =IF(N55="","",SUBTOTAL(103, $N$5:N55)) -> 41 | Q55: 13
A56: MAP | B56: MADP | D56: Mixed Air Dew Point | E56: ma_dewpoint | F56: R | G56: AV | H56: 266 | I56: Input Register | J56: 30069 | K56: ADF | L56: 55 | M56: 0 | P56: =IF(N56="","",SUBTOTAL(103, $N$5:N56)) -> 
A57: MAP | B57: MAE | D57: Mixed Air Enthalpy | E57: ma_enthalpy | F57: R | G57: AV | H57: 267 | I57: Input Register | J57: 30071 | K57: ADF | L57: 56 | M57: 0 | P57: =IF(N57="","",SUBTOTAL(103, $N$5:N57)) -> 
A58: MAP | B58: OADP | D58: Outdoor Air Dew Point | E58: oa_dewpoint | F58: R | G58: AV | H58: 268 | I58: Input Register | J58: 30073 | K58: ADF | L58: 57 | M58: 0 | N58: nvoOaDewpoint | O58: SNVT_temp_p(105) | P58: =IF(N58="","",SUBTOTAL(103, $N$5:N58)) -> 42 | Q58: 13
A59: MAP | B59: OAE | D59: Outdoor Air Enthalpy | E59: oa_enthalpy | F59: R | G59: AV | H59: 269 | I59: Input Register | J59: 30075 | K59: ADF | L59: 58 | M59: 0 | N59: nvoOaEnthalpy | O59: SNVT_enthalpy(153) | P59: =IF(N59="","",SUBTOTAL(103, $N$5:N59)) -> 43 | Q59: 13
A60: MAP | B60: RADP | D60: Return Air Dew Point | E60: ra_dewpoint | F60: R | G60: AV | H60: 270 | I60: Input Register | J60: 30077 | K60: ADF | L60: 59 | M60: 0 | P60: =IF(N60="","",SUBTOTAL(103, $N$5:N60)) -> 
A61: MAP | B61: RAE | D61: Return Air Enthalpy | E61: ra_enthalpy | F61: R | G61: AV | H61: 271 | I61: Input Register | J61: 30079 | K61: ADF | L61: 60 | M61: 0 | P61: =IF(N61="","",SUBTOTAL(103, $N$5:N61)) -> 
A62: MAP | B62: SADP | D62: Supply Air Dew Point | E62: sa_dewpoint | F62: R | G62: AV | H62: 272 | I62: Input Register | J62: 30081 | K62: ADF | L62: 61 | M62: 0 | N62: nvoSaDewpoint | O62: SNVT_temp_p(105) | P62: =IF(N62="","",SUBTOTAL(103, $N$5:N62)) -> 44 | Q62: 13
A63: MAP | B63: SAE | D63: Supply Air Enthalpy | E63: sa_enthalpy | F63: R | G63: AV | H63: 273 | I63: Input Register | J63: 30083 | K63: ADF | L63: 62 | M63: 0 | P63: =IF(N63="","",SUBTOTAL(103, $N$5:N63)) -> 
A64: MAP | B64: WEXADP | D64: Wheel Exhaust Air Dew Point | E64: wexa_dewpoint | F64: R | G64: AV | H64: 274 | I64: Input Register | J64: 30085 | K64: ADF | L64: 63 | M64: 0 | P64: =IF(N64="","",SUBTOTAL(103, $N$5:N64)) -> 
A65: MAP | B65: WEXAE | D65: Wheel Exhaust Air Enthalpy | E65: wexa_enthalpy | F65: R | G65: AV | H65: 275 | I65: Input Register | J65: 30087 | K65: ADF | L65: 64 | M65: 0 | P65: =IF(N65="","",SUBTOTAL(103, $N$5:N65)) -> 
A66: MAP | B66: ZADP | D66: Zone Air Dew Point | E66: za_dewpoint | F66: R | G66: AV | H66: 276 | I66: Input Register | J66: 30089 | K66: ADF | L66: 65 | M66: 0 | P66: =IF(N66="","",SUBTOTAL(103, $N$5:N66)) -> 
A67: MAP | B67: ZAE | D67: Zone Air Enthalpy | E67: za_enthalpy | F67: R | G67: AV | H67: 277 | I67: Input Register | J67: 30091 | K67: ADF | L67: 66 | M67: 0 | P67: =IF(N67="","",SUBTOTAL(103, $N$5:N67)) -> 
A68: MAP | B68: C1VS | D68: Supeheat #1 | E68: superheat1 | F68: R | G68: AV | H68: 278 | I68: Input Register | J68: 30093 | K68: ADF | L68: 67 | M68: 0 | N68: nvoSuperheat1 | O68: SNVT_temp_p(105) | P68: =IF(N68="","",SUBTOTAL(103, $N$5:N68)) -> 45 | Q68: =IF(N68="","",LEN(N68)) -> 13
A69: MAP | B69: C2VS | D69: Supeheat #2 | E69: superheat2 | F69: R | G69: AV | H69: 279 | I69: Input Register | J69: 30095 | K69: ADF | L69: 68 | M69: 0 | N69: nvoSuperheat2 | O69: SNVT_temp_p(105) | P69: =IF(N69="","",SUBTOTAL(103, $N$5:N69)) -> 46 | Q69: 13
A70: MAP | B70: SHTR | D70: Shutter Position | E70: shutter_pos | F70: R | G70: AV | H70: 280 | I70: Input Register | J70: 30097 | K70: ADF | L70: 69 | M70: 0 | N70: nvoShutterPos | O70: SNVT_lev_percent(81) | P70: =IF(N70="","",SUBTOTAL(103, $N$5:N70)) -> 47 | Q70: 13
A71: MAP | B71: ECDA | D71: Economizer Status | E71: ecda_stat | F71: R | G71: AV | H71: 283 | I71: Input Register | J71: 30099 | K71: ADF | L71: 70 | M71: 0 | N71: nvoEcdaStat | O71: SNVT_lev_percent(81) | P71: =IF(N71="","",SUBTOTAL(103, $N$5:N71)) -> 48 | Q71: 11
A72: MAP | B72: OADA | D72: OADA Position | E72: oada_pos | F72: R | G72: AV | H72: 284 | I72: Input Register | J72: 30101 | K72: ADF | L72: 71 | M72: 0 | N72: nvoOadaPos | O72: SNVT_lev_percent(81) | P72: =IF(N72="","",SUBTOTAL(103, $N$5:N72)) -> 49 | Q72: 10
A73: MAP | B73: ECWVFD | D73: ECW VFD Frequency | E73: ecwvfd_freq | F73: R | G73: AV | H73: 285 | I73: Input Register | J73: 30103 | K73: ADF | L73: 72 | M73: 0 | N73: nvoEcwvfdFreq | O73: SNVT_freq_f(75) | P73: =IF(N73="","",SUBTOTAL(103, $N$5:N73)) -> 50 | Q73: 13
A74: MAP | B74: SFMOD | D74: SF Modulation | E74: sfmod_pct | F74: R | G74: AV | H74: 286 | I74: Input Register | J74: 30105 | K74: ADF | L74: 73 | M74: 0 | N74: nvoSfmodPct | O74: SNVT_lev_percent(81) | P74: =IF(N74="","",SUBTOTAL(103, $N$5:N74)) -> 51 | Q74: =IF(N74="","",LEN(N74)) -> 11
A75: MAP | B75: EFMOD | D75: EF Modulation | E75: efmod_pct | F75: R | G75: AV | H75: 287 | I75: Input Register | J75: 30107 | K75: ADF | L75: 74 | M75: 0 | N75: nvoEfmodPct | O75: SNVT_lev_percent(81) | P75: =IF(N75="","",SUBTOTAL(103, $N$5:N75)) -> 52 | Q75: 11
A76: MAP | B76: C1VS | D76: C1 Speed | E76: c1_speed | F76: R | G76: AV | H76: 288 | I76: Input Register | J76: =J75+2 -> 30109 | K76: ADF | L76: 75 | M76: 0 | N76: nvoC1Speed | O76: SNVT_lev_percent(81) | P76: =IF(N76="","",SUBTOTAL(103, $N$5:N76)) -> 53 | Q76: =IF(N76="","",LEN(N76)) -> 10
A77: MAP | B77: C2VS | D77: C2 Speed | E77: c2_speed | F77: R | G77: AV | H77: 289 | I77: Input Register | J77: =J76+2 -> 30111 | K77: ADF | L77: 76 | M77: 0 | N77: nvoC2Speed | O77: SNVT_lev_percent(81) | P77: =IF(N77="","",SUBTOTAL(103, $N$5:N77)) -> 54 | Q77: 10
A78: MAP | B78: CLGVALVE | D78: CWV Percentage | E78: cwv_pct | F78: R | G78: AV | H78: 288 | I78: Input Register | J78: =J76 -> 30109 | K78: ADF | L78: 75 | M78: 0 | N78: nvoCwvPct | O78: SNVT_lev_percent(81) | P78: =IF(N78="","",SUBTOTAL(103, $N$5:N78)) -> 55 | Q78: =IF(N78="","",LEN(N78)) -> 9
A79: MAP | B79: HGRHMOD | D79: HGRH Modulation | E79: hgrh_mod | F79: R | G79: AV | H79: 290 | I79: Input Register | J79: =J77+2 -> 30113 | K79: ADF | L79: 77 | M79: 0 | N79: nvoHgrhMod | O79: SNVT_lev_percent(81) | P79: =IF(N79="","",SUBTOTAL(103, $N$5:N79)) -> 56 | Q79: 10
A80: MAP | B80: HTGMOD | D80: Heat Modulation | E80: htg_mod | F80: R | G80: AV | H80: 291 | I80: Input Register | J80: =J79+2 -> 30115 | K80: ADF | L80: 78 | M80: 0 | N80: nvoHtgMod | O80: SNVT_lev_percent(81) | P80: =IF(N80="","",SUBTOTAL(103, $N$5:N80)) -> 57 | Q80: 9
A81: MAP | B81: C1VS | D81: EEV #1 Modulation | E81: eev1_pct | F81: R | G81: AV | H81: 292 | I81: Input Register | J81: =J80+2 -> 30117 | K81: ADF | L81: 79 | M81: 0 | N81: nvoEev1Pct | O81: SNVT_lev_percent(81) | P81: =IF(N81="","",SUBTOTAL(103, $N$5:N81)) -> 58 | Q81: 10
A82: MAP | B82: C2VS | D82: EEV #2 Modulation | E82: eev2_pct | F82: R | G82: AV | H82: 293 | I82: Input Register | J82: 30119 | K82: ADF | L82: 80 | M82: 0 | P82: =IF(N82="","",SUBTOTAL(103, $N$5:N82)) -> 
A83: MAP | B83: WTW | D83: Load EWT Status | E83: lewt_stat | F83: R | G83: AV | H83: 292 | I83: Input Register | J83: =J80+2 -> 30117 | K83: ADF | L83: 79 | M83: 0 | P83: =IF(N83="","",SUBTOTAL(103, $N$5:N83)) ->  | Q83: =IF(N83="","",LEN(N83)) -> 
A84: MAP | B84: WTW | D84: Load LWT Status | E84: llwt_stat | F84: R | G84: AV | H84: 293 | I84: Input Register | J84: 30119 | K84: ADF | L84: 80 | M84: 0 | P84: =IF(N84="","",SUBTOTAL(103, $N$5:N84)) -> 
A85: MAP | B85: WTW | D85: Source EWT Status | E85: sewt_stat | F85: R | G85: AV | H85: 294 | I85: Input Register | J85: 30121 | K85: ADF | L85: 81 | M85: 0 | P85: =IF(N85="","",SUBTOTAL(103, $N$5:N85)) -> 
A86: MAP | B86: WTW | D86: Source LWT Status | E86: slwt_stat | F86: R | G86: AV | H86: 295 | I86: Input Register | J86: 30123 | K86: ADF | L86: 82 | M86: 0 | P86: =IF(N86="","",SUBTOTAL(103, $N$5:N86)) -> 
A87: MAP | B87: SFDPT | D87: SF DPT SP | E87: sf_dpt_sp | F87: R/W | G87: AV | H87: 301 | I87: Holding Register | J87: 40051 | K87: ADF | L87: 91 | M87: 0 | N87: nviSfDptSp | O87: SNVT_press_p(113) | P87: =IF(N87="","",SUBTOTAL(103, $N$5:N87)) -> 59 | Q87: 10
A88: MAP | B88: EFDPT | D88: EF DPT SP | E88: ef_dpt_sp | F88: R/W | G88: AV | H88: 302 | I88: Holding Register | J88: =J87+2 -> 40053 | K88: ADF | L88: 92 | M88: 0 | N88: nviEfDptSp | O88: SNVT_press_p(113) | P88: =IF(N88="","",SUBTOTAL(103, $N$5:N88)) -> 60 | Q88: 10
A89: MAP | B89: ZNDPT | D89: ZN DPT SP | E89: zn_dpt_sp | F89: R/W | G89: AV | H89: 303 | I89: Holding Register | J89: =J88+2 -> 40055 | K89: ADF | L89: 93 | M89: 0 | N89: nviZnDptSp | O89: SNVT_press_p(113) | P89: =IF(N89="","",SUBTOTAL(103, $N$5:N89)) -> 61 | Q89: =IF(N89="","",LEN(N89)) -> 10
A90: MAP | B90: SFAMS | D90: SF AMS SP | E90: sf_ams_sp | F90: R/W | G90: AV | H90: 304 | I90: Holding Register | J90: =J89+2 -> 40057 | K90: ADF | L90: 94 | M90: 0 | N90: nviSfAmsSp | O90: SNVT_flow(15) | P90: =IF(N90="","",SUBTOTAL(103, $N$5:N90)) -> 62 | Q90: 10
A91: MAP | B91: SFAMSLC | D91: SF AMS Design SP | E91: sfams_design_sp | F91: R/W | G91: AV | H91: 304 | I91: Holding Register | J91: =J90 -> 40057 | K91: ADF | L91: 94 | M91: 0 | N91: nviSfamsDesSp | O91: SNVT_flow(15) | P91: =IF(N91="","",SUBTOTAL(103, $N$5:N93)) -> 65 | Q91: =IF(N91="","",LEN(N91)) -> 13
A92: MAP | B92: EFAMS | D92: EF AMS SP | E92: ef_ams_sp | F92: R/W | G92: AV | H92: 305 | I92: Holding Register | J92: =J90+2 -> 40059 | K92: ADF | L92: 95 | M92: 0 | N92: nviSfAmsDesSp | O92: SNVT_flow(15) | P92: =IF(N92="","",SUBTOTAL(103, $N$5:N92)) -> 64 | Q92: 13
A93: MAP | B93: OAAMS | D93: OA AMS SP | E93: oa_ams_sp | F93: R/W | G93: AV | H93: 306 | I93: Holding Register | J93: =J92+2 -> 40061 | K93: ADF | L93: 96 | M93: 0 | N93: nviSfAmsDesSp | O93: SNVT_flow(15) | P93: =IF(N93="","",SUBTOTAL(103, $N$5:N93)) -> 65 | Q93: 13
A94: MAP | B94: SFAMSLC | D94: SF AMS Demand SP #1 | E94: sfams_demand1_sp | F94: R/W | G94: AV | H94: 3041 | I94: Holding Register | J94: 40063 | K94: ADF | L94: 97 | M94: 0 | N94: nviSfamsDem1 | O94: SNVT_flow(15) | P94: =IF(N94="","",SUBTOTAL(103, $N$5:N94)) -> 66 | Q94: =IF(N94="","",LEN(N94)) -> 12
A95: MAP | B95: SFAMSLC | D95: SF AMS Demand SP Status | E95: sfams_dem_sp_stat | F95: R | G95: AV | H95: 3049 | I95: Input Register | J95: 30125 | K95: ADF | L95: 98 | M95: 0 | N95: nvoSfaDSpStat | O95: SNVT_flow(15) | P95: =IF(N95="","",SUBTOTAL(103, $N$5:N95)) -> 67 | Q95: =IF(N95="","",LEN(N95)) -> 13
A96: MAP | B96: CLG1 | D96: Clg #1A Enable SP | E96: clg1a_en_sp | F96: R/W | G96: AV | H96: 307 | I96: Holding Register | J96: 40071 | K96: ADF | L96: 101 | M96: 0 | N96: nviClg1aEnSp | O96: SNVT_temp_p(105) | P96: =IF(N96="","",SUBTOTAL(103, $N$5:N96)) -> 68 | Q96: 12
A97: MAP | B97: CLG1 | D97: Clg #1A Enable UDB | E97: clg1a_en_udb | F97: R/W | G97: AV | H97: 308 | I97: Holding Register | J97: 40073 | K97: ADF | L97: 102 | P97: =IF(N97="","",SUBTOTAL(103, $N$5:N97)) ->  | Q97: =IF(N97="","",LEN(N97)) -> 
A98: MAP | B98: CLG1 | D98: Clg #1A Enable LDB | E98: clg1a_en_ldb | F98: R/W | G98: AV | H98: 309 | I98: Holding Register | J98: 40075 | K98: ADF | L98: 103 | P98: =IF(N98="","",SUBTOTAL(103, $N$5:N98)) -> 
A99: MAP | B99: CLG1 | D99: Clg #1B Enable SP | E99: clg1b_en_sp | F99: R/W | G99: AV | H99: 310 | I99: Holding Register | J99: 40077 | K99: ADF | L99: 104 | M99: 0 | N99: nviClg1bEnSp | O99: SNVT_temp_p(105) | P99: =IF(N99="","",SUBTOTAL(103, $N$5:N99)) -> 69 | Q99: 12
A100: MAP | B100: CLG1 | D100: Clg #1B Enable UDB | E100: clg1b_en_udb | F100: R/W | G100: AV | H100: 311 | I100: Holding Register | J100: 40079 | K100: ADF | L100: 105 | P100: =IF(N100="","",SUBTOTAL(103, $N$5:N100)) -> 
A101: MAP | B101: CLG1 | D101: Clg #1B Enable LDB | E101: clg1b_en_ldb | F101: R/W | G101: AV | H101: 312 | I101: Holding Register | J101: 40081 | K101: ADF | L101: 106 | P101: =IF(N101="","",SUBTOTAL(103, $N$5:N101)) -> 
A102: MAP | B102: CLGMOD | D102: Clg Mod. SP Occ | E102: clg_mod_sp_o | F102: R/W | G102: AV | H102: 313 | I102: Holding Register | J102: =J101+2 -> 40083 | K102: ADF | L102: 107 | M102: 0 | N102: nviClgModSpO | O102: SNVT_temp_p(105) | P102: =IF(N102="","",SUBTOTAL(103, $N$5:N102)) -> 70 | Q102: =IF(N102="","",LEN(N102)) -> 12
A103: MAP | B103: CLGMOD | D103: Clg Mod. SP Unocc | E103: clg_mod_sp_u | F103: R/W | G103: AV | H103: 314 | I103: Holding Register | J103: 40085 | K103: ADF | L103: 108 | P103: =IF(N103="","",SUBTOTAL(103, $N$5:N103)) -> 
A104: MAP | B104: CLG | D104: Clg SAT SP Occ | E104: clg_sat_sp_o | F104: R/W | G104: AV | H104: 315 | I104: Holding Register | J104: =J103+2 -> 40087 | K104: ADF | L104: 109 | M104: 0 | N104: nviClgSatSpO | O104: SNVT_temp_p(105) | P104: =IF(N104="","",SUBTOTAL(103, $N$5:N104)) -> 71 | Q104: 12
A105: MAP | B105: CLG | D105: Clg SAT SP Unocc | E105: clg_sat_sp_u | F105: R/W | G105: AV | H105: 316 | I105: Holding Register | J105: 40089 | K105: ADF | L105: 110 | P105: =IF(N105="","",SUBTOTAL(103, $N$5:N105)) -> 
A106: MAP | B106: CLG1 | D106: Clg #1 ZAT UDB | E106: clg1_zat_udb | F106: R/W | G106: AV | H106: 317 | I106: Holding Register | J106: 40091 | K106: ADF | L106: 111 | P106: =IF(N106="","",SUBTOTAL(103, $N$5:N106)) -> 
A107: MAP | B107: CLG1 | D107: Clg #1 ZAT LDB | E107: clg1_zat_ldb | F107: R/W | G107: AV | H107: 318 | I107: Holding Register | J107: 40093 | K107: ADF | L107: 112 | P107: =IF(N107="","",SUBTOTAL(103, $N$5:N107)) -> 
A108: MAP | B108: CLG | D108: Cooling Mode Low Limit | E108: clg_llim | F108: R/W | G108: AV | H108: 319 | I108: Holding Register | J108: 40095 | K108: ADF | L108: 113 | P108: =IF(N108="","",SUBTOTAL(103, $N$5:N108)) ->  | Q108: =IF(N108="","",LEN(N108)) -> 
A109: MAP | B109: CLG | D109: Cooling Mode Low Limit Unoccupied | E109: clg_llim_u | F109: R/W | G109: AV | H109: 320 | I109: Holding Register | J109: 40097 | K109: ADF | L109: 114 | P109: =IF(N109="","",SUBTOTAL(103, $N$5:N109)) -> 
A110: MAP | B110: CLG | D110: Freeze Protection USP | E110: fp_usp | F110: R/W | G110: AV | H110: 321 | I110: Holding Register | J110: 40099 | K110: ADF | L110: 115 | P110: =IF(N110="","",SUBTOTAL(103, $N$5:N110)) ->  | Q110: =IF(N110="","",LEN(N110)) -> 
A111: MAP | B111: CLG | D111: Freeze Protection MSP | E111: fp_msp | F111: R/W | G111: AV | H111: 322 | I111: Holding Register | J111: 40101 | K111: ADF | L111: 116 | P111: =IF(N111="","",SUBTOTAL(103, $N$5:N111)) ->  | Q111: =IF(N111="","",LEN(N111)) -> 
A112: MAP | B112: CLG | D112: Freeze Protection LSP | E112: fp_lsp | F112: R/W | G112: AV | H112: 323 | I112: Holding Register | J112: 40103 | K112: ADF | L112: 117 | P112: =IF(N112="","",SUBTOTAL(103, $N$5:N112)) ->  | Q112: =IF(N112="","",LEN(N112)) -> 
A113: MAP | B113: ZAT | D113: ZAT Ratio | E113: zat_ratio | F113: R/W | G113: AV | H113: 324 | I113: Holding Register | J113: 40105 | K113: ADF | L113: 118 | P113: =IF(N113="","",SUBTOTAL(103, $N$5:N113)) ->  | Q113: =IF(N113="","",LEN(N113)) -> 
A114: MAP | B114: SAT | D114: SAT Ratio | E114: sat_ratio | F114: R/W | G114: AV | H114: 325 | I114: Holding Register | J114: 40107 | K114: ADF | L114: 119 | P114: =IF(N114="","",SUBTOTAL(103, $N$5:N114)) -> 
A115: MAP | B115: SAT | D115: SAT Maximum Reset | E115: sat_max_reset | F115: R/W | G115: AV | H115: 326 | I115: Holding Register | J115: =J114+2 -> 40109 | K115: ADF | L115: 120 | P115: =IF(N115="","",SUBTOTAL(103, $N$5:N115)) -> 
A116: MAP | B116: CLG2 | D116: Clg #2A Enable SP | E116: clg2a_en_sp | F116: R/W | G116: AV | H116: 327 | I116: Holding Register | J116: 40111 | K116: ADF | L116: 121 | M116: 0 | N116: nviClg2aEnSp | O116: SNVT_temp_p(105) | P116: =IF(N116="","",SUBTOTAL(103, $N$5:N116)) -> 72 | Q116: 12
A117: MAP | B117: CLG2 | D117: Clg #2A Enable UDB | E117: clg2a_en_udb | F117: R/W | G117: AV | H117: 328 | I117: Holding Register | J117: 40113 | K117: ADF | L117: 122 | P117: =IF(N117="","",SUBTOTAL(103, $N$5:N117)) -> 
A118: MAP | B118: CLG2 | D118: Clg #2A Enable LDB | E118: clg2a_en_ldb | F118: R/W | G118: AV | H118: 329 | I118: Holding Register | J118: 40115 | K118: ADF | L118: 123 | P118: =IF(N118="","",SUBTOTAL(103, $N$5:N118)) -> 
A119: MAP | B119: CLG2 | D119: Clg #2B Enable SP | E119: clg2b_en_sp | F119: R/W | G119: AV | H119: 330 | I119: Holding Register | J119: 40117 | K119: ADF | L119: 124 | M119: 0 | N119: nviClg2bEnSp | O119: SNVT_temp_p(105) | P119: =IF(N119="","",SUBTOTAL(103, $N$5:N119)) -> 73 | Q119: 12
A120: MAP | B120: CLG2 | D120: Clg #2B Enable UDB | E120: clg2b_en_udb | F120: R/W | G120: AV | H120: 331 | I120: Holding Register | J120: 40119 | K120: ADF | L120: 125 | P120: =IF(N120="","",SUBTOTAL(103, $N$5:N120)) -> 
A121: MAP | B121: CLG2 | D121: Clg #2B Enable LDB | E121: clg2b_en_ldb | F121: R/W | G121: AV | H121: 332 | I121: Holding Register | J121: 40121 | K121: ADF | L121: 126 | P121: =IF(N121="","",SUBTOTAL(103, $N$5:N121)) -> 
A122: MAP | B122: CLG2 | D122: Clg #2 ZAT UDB | E122: clg2_zat_udb | F122: R/W | G122: AV | H122: 333 | I122: Holding Register | J122: 40123 | K122: ADF | L122: 127 | P122: =IF(N122="","",SUBTOTAL(103, $N$5:N122)) -> 
A123: MAP | B123: CLG2 | D123: Clg #2 ZAT LDB | E123: clg2_zat_ldb | F123: R/W | G123: AV | H123: 334 | I123: Holding Register | J123: 40125 | K123: ADF | L123: 128 | P123: =IF(N123="","",SUBTOTAL(103, $N$5:N123)) -> 
A124: MAP | B124: HGRH | D124: Reheat SAT UDB | E124: rh_sat_udb | F124: R/W | G124: AV | H124: 335 | I124: Holding Register | J124: 40131 | K124: ADF | L124: 131 | P124: =IF(N124="","",SUBTOTAL(103, $N$5:N124)) -> 
A125: MAP | B125: HGRH | D125: Reheat SAT LDB | E125: rh_sat_ldb | F125: R/W | G125: AV | H125: 336 | I125: Holding Register | J125: 40133 | K125: ADF | L125: 132 | P125: =IF(N125="","",SUBTOTAL(103, $N$5:N125)) -> 
A126: MAP | B126: DH1 | D126: DH SP Occ | E126: dh_sp_o | F126: R/W | G126: AV | H126: 337 | I126: Holding Register | J126: 40135 | K126: ADF | L126: 133 | M126: 0 | N126: nviDhSpO | O126: SNVT_temp_p(105) | P126: =IF(N126="","",SUBTOTAL(103, $N$5:N126)) -> 74 | Q126: 8
A127: MAP | B127: DH1 | D127: DH SP Unocc | E127: dh_sp_u | F127: R/W | G127: AV | H127: 338 | I127: Holding Register | J127: 40137 | K127: ADF | L127: 134 | P127: =IF(N127="","",SUBTOTAL(103, $N$5:N127)) -> 
A128: MAP | B128: DH1 | D128: DH UDB C1 Dehum. | E128: dh1_udb | F128: R/W | G128: AV | H128: 339 | I128: Holding Register | J128: 40139 | K128: ADF | L128: 135 | P128: =IF(N128="","",SUBTOTAL(103, $N$5:N128)) -> 
A129: MAP | B129: DH1 | D129: DH LDB C1 Dehum. | E129: dh1_ldb | F129: R/W | G129: AV | H129: 340 | I129: Holding Register | J129: 40141 | K129: ADF | L129: 136 | P129: =IF(N129="","",SUBTOTAL(103, $N$5:N129)) -> 
A130: MAP | B130: DH1 | D130: DH SAT SP Occ | E130: dh_sat_sp_o | F130: R/W | G130: AV | H130: 341 | I130: Holding Register | J130: 40143 | K130: ADF | L130: 137 | M130: 0 | N130: nviDhSatSpO | O130: SNVT_temp_p(105) | P130: =IF(N130="","",SUBTOTAL(103, $N$5:N130)) -> 75 | Q130: 11
A131: MAP | B131: DH1 | D131: DH SAT SP Unocc | E131: dh_sat_sp_u | F131: R/W | G131: AV | H131: 342 | I131: Holding Register | J131: 40145 | K131: ADF | L131: 138 | P131: =IF(N131="","",SUBTOTAL(103, $N$5:N131)) -> 
A132: MAP | B132: DH1 | D132: DH Mode ZAT UDB | E132: dh_zat_udb | F132: R/W | G132: AV | H132: 343 | I132: Holding Register | J132: 40147 | K132: ADF | L132: 139 | P132: =IF(N132="","",SUBTOTAL(103, $N$5:N132)) -> 
A133: MAP | B133: DH1 | D133: DH Mode Low Limit | E133: dh_llim | F133: R/W | G133: AV | H133: 344 | I133: Holding Register | J133: 40149 | K133: ADF | L133: 140 | M133: 0 | P133: =IF(N133="","",SUBTOTAL(103, $N$5:N133)) ->  | Q133: =IF(N133="","",LEN(N133)) -> 
A134: MAP | B134: DH1 | D134: Dehumidification #1 Sensor | E134: dh1_stat | F134: R | G134: AV | H134: 345 | I134: Input Register | J134: 30131 | K134: ADF | L134: 141 | P134: =IF(N134="","",SUBTOTAL(103, $N$5:N134)) -> 
A135: MAP | B135: DH1 | D135: DH Mod. SP | E135: dh_mod_sp | F135: R/W | G135: AV | H135: 346 | I135: Holding Register | J135: =J133+2 -> 40151 | K135: ADF | L135: 142 | N135: nviDhModSp | O135: SNVT_temp_p(105) | P135: =IF(N135="","",SUBTOTAL(103, $N$5:N135)) -> 76 | Q135: 10
A136: MAP | B136: DH2 | D136: DH UDB C2 Dehum. | E136: dh2_udb | F136: R/W | G136: AV | H136: 347 | I136: Holding Register | J136: =J135+2 -> 40153 | K136: ADF | L136: 143 | P136: =IF(N136="","",SUBTOTAL(103, $N$5:N136)) -> 
A137: MAP | B137: DH2 | D137: DH LDB C2 Dehum. | E137: dh2_ldb | F137: R/W | G137: AV | H137: 348 | I137: Holding Register | J137: =J136+2 -> 40155 | K137: ADF | L137: 144 | P137: =IF(N137="","",SUBTOTAL(103, $N$5:N137)) -> 
A138: MAP | B138: DH2 | D138: Dehumidification #2 Sensor | E138: dh2_stat | F138: R | G138: AV | H138: 349 | I138: Input Register | J138: =J134+2 -> 30133 | K138: ADF | L138: 145 | P138: =IF(N138="","",SUBTOTAL(103, $N$5:N138)) -> 
A139: MAP | B139: STDHTG | D139: Htg Enable SP | E139: htg_en_sp | F139: R/W | G139: AV | H139: 351 | I139: Holding Register | J139: 40161 | K139: ADF | L139: 151 | M139: 0 | N139: nviHtgEnSp | O139: SNVT_temp_p(105) | P139: =IF(N139="","",SUBTOTAL(103, $N$5:N139)) -> 77 | Q139: =IF(N139="","",LEN(N139)) -> 10
A140: MAP | B140: STDHTG | D140: Htg Enable UDB | E140: htg_en_udb | F140: R/W | G140: AV | H140: 352 | I140: Holding Register | J140: =J139+2 -> 40163 | K140: ADF | L140: 152 | P140: =IF(N140="","",SUBTOTAL(103, $N$5:N140)) ->  | Q140: =IF(N140="","",LEN(N140)) -> 
A141: MAP | B141: STDHTG | D141: Htg Enable LDB | E141: htg_en_ldb | F141: R/W | G141: AV | H141: 353 | I141: Holding Register | J141: =J140+2 -> 40165 | K141: ADF | L141: 153 | P141: =IF(N141="","",SUBTOTAL(103, $N$5:N141)) ->  | Q141: =IF(N141="","",LEN(N141)) -> 
A142: MAP | B142: STDHTG | D142: Htg SAT SP Occ | E142: htg_sat_sp_o | F142: R/W | G142: AV | H142: 354 | I142: Holding Register | J142: 40167 | K142: ADF | L142: 154 | M142: 0 | N142: nviHtgSatSpO | O142: SNVT_temp_p(105) | P142: =IF(N142="","",SUBTOTAL(103, $N$5:N142)) -> 78 | Q142: 13
A143: MAP | B143: STDHTG | D143: Htg SAT SP Unocc | E143: htg_sat_sp_u | F143: R/W | G143: AV | H143: 355 | I143: Holding Register | J143: 40169 | K143: ADF | L143: 155 | P143: =IF(N143="","",SUBTOTAL(103, $N$5:N143)) -> 
A144: MAP | B144: STDHTG | D144: Htg SAT UDB | E144: htg_sat_udb | F144: R/W | G144: AV | H144: 356 | I144: Holding Register | J144: 40171 | K144: ADF | L144: 156 | P144: =IF(N144="","",SUBTOTAL(103, $N$5:N144)) -> 
A145: MAP | B145: STDHTG | D145: Htg SAT LDB | E145: htg_sat_ldb | F145: R/W | G145: AV | H145: 357 | I145: Holding Register | J145: 40173 | K145: ADF | L145: 157 | P145: =IF(N145="","",SUBTOTAL(103, $N$5:N145)) -> 
A146: MAP | B146: STDHTG | D146: Htg ZAT UDB | E146: htg_zat_udb | F146: R/W | G146: AV | H146: 358 | I146: Holding Register | J146: 40175 | K146: ADF | L146: 158 | P146: =IF(N146="","",SUBTOTAL(103, $N$5:N146)) -> 
A147: MAP | B147: STDHTG | D147: Htg ZAT LDB | E147: htg_zat_ldb | F147: R/W | G147: AV | H147: 359 | I147: Holding Register | J147: 40177 | K147: ADF | L147: 159 | P147: =IF(N147="","",SUBTOTAL(103, $N$5:N147)) -> 
A148: MAP | B148: HP1 | D148: Heat Pump Enable SP | E148: hp_en_sp | F148: R/W | G148: AV | H148: 351 | I148: Holding Register | J148: =J139 -> 40161 | K148: ADF | L148: 151 | M148: 0 | N148: nviHpEnSp | O148: SNVT_temp_p(105) | P148: =IF(N148="","",SUBTOTAL(103, $N$5:N148)) -> 79 | Q148: =IF(N148="","",LEN(N148)) -> 9
A149: MAP | B149: HP1 | D149: Heat Pump #1 Enable UDB | E149: hp1_en_udb | F149: R/W | G149: AV | H149: 352 | I149: Holding Register | J149: =J140 -> 40163 | K149: ADF | L149: 152 | P149: =IF(N149="","",SUBTOTAL(103, $N$5:N149)) -> 
A150: MAP | B150: HP1 | D150: Heat Pump #1 Enable LDB | E150: hp1_en_ldb | F150: R/W | G150: AV | H150: 353 | I150: Holding Register | J150: =J141 -> 40165 | K150: ADF | L150: 153 | P150: =IF(N150="","",SUBTOTAL(103, $N$5:N150)) -> 
A151: MAP | B151: HP1 | D151: Heat Pump SAT SP Occ | E151: hp_sat_sp_o | F151: R/W | G151: AV | H151: 354 | I151: Holding Register | J151: =J142 -> 40167 | K151: ADF | L151: 154 | M151: 0 | N151: nviHpSatSpO | O151: SNVT_temp_p(105) | P151: =IF(N151="","",SUBTOTAL(103, $N$5:N151)) -> 80 | Q151: 12
A152: MAP | B152: HP1 | D152: Heat Pump SAT SP Unocc | E152: hp_sat_sp_u | F152: R/W | G152: AV | H152: 355 | I152: Holding Register | J152: =J143 -> 40169 | K152: ADF | L152: 155 | P152: =IF(N152="","",SUBTOTAL(103, $N$5:N152)) -> 
A153: MAP | B153: HP1 | D153: Heat Pump #1 ZAT UDB | E153: hp1_zat_udb | F153: R/W | G153: AV | H153: 358 | I153: Holding Register | J153: =J146 -> 40175 | K153: ADF | L153: 158 | P153: =IF(N153="","",SUBTOTAL(103, $N$5:N153)) -> 
A154: MAP | B154: HP1 | D154: Heat Pump #1 ZAT LDB | E154: hp1_zat_ldb | F154: R/W | G154: AV | H154: 359 | I154: Holding Register | J154: =J147 -> 40177 | K154: ADF | L154: 159 | P154: =IF(N154="","",SUBTOTAL(103, $N$5:N154)) -> 
A155: MAP | B155: HTG | D155: Htg Mode High Limit | E155: htg_hlim | F155: R/W | G155: AV | H155: 360 | I155: Holding Register | J155: 40179 | K155: ADF | L155: 160 | M155: 0 | P155: =IF(N155="","",SUBTOTAL(103, $N$5:N155)) -> 
A156: MAP | B156: HTG | D156: SAT Heat Fail | E156: sat_heat_fail | F156: R/W | G156: AV | H156: 361 | I156: Holding Register | J156: 40181 | K156: ADF | L156: 161 | P156: =IF(N156="","",SUBTOTAL(103, $N$5:N156)) -> 
A157: MAP | B157: HTG | D157: SAT High Limit | E157: sat_high_limit | F157: R/W | G157: AV | H157: 362 | I157: Holding Register | J157: 40183 | K157: ADF | L157: 162 | P157: =IF(N157="","",SUBTOTAL(103, $N$5:N157)) -> 
A158: MAP | B158: HP2 | D158: Heat Pump #2 Enable UDB | E158: hp2_en_udb | F158: R/W | G158: AV | H158: 363 | I158: Holding Register | J158: 40185 | K158: ADF | L158: 163 | P158: =IF(N158="","",SUBTOTAL(103, $N$5:N158)) -> 
A159: MAP | B159: HP2 | D159: Heat Pump #2 Enable LDB | E159: hp2_en_ldb | F159: R/W | G159: AV | H159: 364 | I159: Holding Register | J159: 40187 | K159: ADF | L159: 164 | P159: =IF(N159="","",SUBTOTAL(103, $N$5:N159)) ->  | Q159: =IF(N159="","",LEN(N159)) -> 
A160: MAP | B160: HP2 | D160: Heat Pump #2 ZAT UDB | E160: hp2_zat_udb | F160: R/W | G160: AV | H160: 365 | I160: Holding Register | J160: 40189 | K160: ADF | L160: 165 | P160: =IF(N160="","",SUBTOTAL(103, $N$5:N160)) -> 
A161: MAP | B161: HP2 | D161: Heat Pump #2 ZAT LDB | E161: hp2_zat_ldb | F161: R/W | G161: AV | H161: 366 | I161: Holding Register | J161: 40191 | K161: ADF | L161: 166 | P161: =IF(N161="","",SUBTOTAL(103, $N$5:N161)) -> 
A162: MAP | B162: AHTG | D162: Aux. Htg SAT UDB | E162: ahtg_sat_udb | F162: R/W | G162: AV | H162: 367 | I162: Holding Register | J162: 40193 | K162: ADF | L162: 167 | P162: =IF(N162="","",SUBTOTAL(103, $N$5:N162)) -> 
A163: MAP | B163: AHTG | D163: Aux. Htg SAT LDB | E163: ahtg_sat_ldb | F163: R/W | G163: AV | H163: 368 | I163: Holding Register | J163: 40195 | K163: ADF | L163: 168 | P163: =IF(N163="","",SUBTOTAL(103, $N$5:N163)) -> 
A164: MAP | B164: EHTG | D164: Emerg. Htg Enable UDB | E164: ehtg_en_udb | F164: R/W | G164: AV | H164: 369 | I164: Holding Register | J164: 40197 | K164: ADF | L164: 169 | P164: =IF(N164="","",SUBTOTAL(103, $N$5:N164)) -> 
A165: MAP | B165: EHTG | D165: Emerg. Htg Enable LDB | E165: ehtg_en_ldb | F165: R/W | G165: AV | H165: 370 | I165: Holding Register | J165: 40199 | K165: ADF | L165: 170 | P165: =IF(N165="","",SUBTOTAL(103, $N$5:N165)) -> 
A166: MAP | B166: SF | D166: SF Min. Time On | E166: sf_min_time_on | F166: R/W | G166: AV | H166: 371 | I166: Holding Register | J166: 40201 | K166: ADF | L166: 171 | P166: =IF(N166="","",SUBTOTAL(103, $N$5:N166)) -> 
A167: MAP | B167: EF | D167: EF Min. Time On | E167: ef_min_time_on | F167: R/W | G167: AV | H167: 372 | I167: Holding Register | J167: 40203 | K167: ADF | L167: 172 | P167: =IF(N167="","",SUBTOTAL(103, $N$5:N167)) -> 
A168: MAP | B168: CLG | D168: Freeze Protection Delay | E168: fp_delay | F168: R/W | G168: AV | H168: 373 | I168: Holding Register | J168: 40205 | K168: ADF | L168: 173 | P168: =IF(N168="","",SUBTOTAL(103, $N$5:N168)) -> 
A169: MAP | B169: AHTG | D169: Aux. Htg. Delay | E169: ahtg_delay | F169: R/W | G169: AV | H169: 374 | I169: Holding Register | J169: 40207 | K169: ADF | L169: 174 | P169: =IF(N169="","",SUBTOTAL(103, $N$5:N169)) -> 
A170: MAP | B170: ECWALC | D170: ECW Economy UDB | E170: ecw_econ_udb | F170: R/W | G170: AV | H170: 511 | I170: Holding Register | J170: 40211 | K170: ADF | L170: 181 | P170: =IF(N170="","",SUBTOTAL(103, $N$5:N170)) -> 
A171: MAP | B171: ECWALC | D171: ECW Economy LDB | E171: ecw_econ_ldb | F171: R/W | G171: AV | H171: 512 | I171: Holding Register | J171: =J170+2 -> 40213 | K171: ADF | L171: 182 | P171: =IF(N171="","",SUBTOTAL(103, $N$5:N171)) -> 
A172: MAP | B172: ECWOO | D172: ECW Defrost LSP | E172: ecw_def_lsp | F172: R/W | G172: AV | H172: 513 | I172: Holding Register | J172: =J171+2 -> 40215 | K172: ADF | L172: 183 | P172: =IF(N172="","",SUBTOTAL(103, $N$5:N172)) -> 
A173: MAP | B173: ECWOO | D173: ECW Defrost USP | E173: ecw_def_usp | F173: R/W | G173: AV | H173: 514 | I173: Holding Register | J173: 40217 | K173: ADF | L173: 184 | P173: =IF(N173="","",SUBTOTAL(103, $N$5:N173)) -> 
A174: MAP | B174: HP1 | D174: Compressor Disable SP | E174: comp_dis_sp | F174: R/W | G174: AV | H174: 541 | I174: Holding Register | J174: 40219 | K174: ADF | L174: 185 | N174: nviCompDisSp | O174: SNVT_temp_p(105) | P174: =IF(N174="","",SUBTOTAL(103, $N$5:N174)) -> 81 | Q174: =IF(N174="","",LEN(N174)) -> 12
A175: MAP | B175: CLG | D175: Purge Cycle | E175: purge_cycle | F175: R/W | G175: AV | H175: 547 | I175: Holding Register | J175: 40221 | K175: ADF | L175: 186 | P175: =IF(N175="","",SUBTOTAL(103, $N$5:N175)) ->  | Q175: =IF(N175="","",LEN(N175)) -> 
A176: MAP | B176: CLG | D176: Purge Time On | E176: purge_time_on | F176: R/W | G176: AV | H176: 548 | I176: Holding Register | J176: 40223 | K176: ADF | L176: 187 | P176: =IF(N176="","",SUBTOTAL(103, $N$5:N176)) ->  | Q176: =IF(N176="","",LEN(N176)) -> 
A177: MAP | B177: ECON | D177: Econ. OAT Upper SP | E177: econ_oat_usp | F177: R/W | G177: AV | H177: 550 | I177: Holding Register | J177: 40227 | K177: ADF | L177: 188 | N177: nviEconOatUsp | O177: SNVT_temp_p(105) | P177: =IF(N177="","",SUBTOTAL(103, $N$5:N180)) -> 84 | Q177: =IF(N177="","",LEN(N177)) -> 13
A178: MAP | B178: ECONOAE | D178: Econ. OAE SP | E178: econ_oae_sp | F178: R/W | G178: AV | H178: 551 | I178: Holding Register | J178: 40229 | K178: ADF | L178: 189 | M178: 0 | N178: nviEconOaeSp | O178: SNVT_enthalpy(153) | P178: =IF(N178="","",SUBTOTAL(103, $N$5:N178)) -> 83 | Q178: =IF(N178="","",LEN(N178)) -> 12
A179: MAP | B179: ECONOAT | D179: Econ. OAT SP | E179: econ_oat_sp | F179: R/W | G179: AV | H179: 551 | I179: Holding Register | J179: =J178 -> 40229 | K179: ADF | L179: 189 | M179: 0 | N179: nviEconOatSp | O179: SNVT_temp_p(105) | P179: =IF(N179="","",SUBTOTAL(103, $N$5:N179)) -> 84 | Q179: 12
A180: MAP | B180: ECONOAE | D180: Econ. OAE UDB | E180: econ_oae_udb | F180: R/W | G180: AV | H180: 552 | I180: Holding Register | J180: 40231 | K180: ADF | L180: 190 | P180: =IF(N180="","",SUBTOTAL(103, $N$5:N180)) -> 
A181: MAP | B181: ECON | D181: Econ. Staging DOM | E181: econ_stg_dom | F181: R/W | G181: AV | H181: 553 | I181: Holding Register | J181: 40233 | K181: ADF | L181: 191 | P181: =IF(N181="","",SUBTOTAL(103, $N$5:N181)) -> 
A182: MAP | B182: CLG2 | D182: Cooling #2 Delay | E182: clg2_delay | F182: R/W | G182: AV | H182: 554 | I182: Holding Register | J182: 40235 | K182: ADF | L182: 192 | P182: =IF(N182="","",SUBTOTAL(103, $N$5:N182)) ->  | Q182: =IF(N182="","",LEN(N182)) -> 
A183: MAP | B183: SC | D183: Sub-Cooling UDB | E183: sc_udb | F183: R/W | G183: AV | H183: 555 | I183: Holding Register | J183: 40237 | K183: ADF | L183: 193 | P183: =IF(N183="","",SUBTOTAL(103, $N$5:N183)) ->  | Q183: =IF(N183="","",LEN(N183)) -> 
A184: MAP | B184: SC | D184: Sub-Cooling LDB | E184: sc_ldb | F184: R/W | G184: AV | H184: 556 | I184: Holding Register | J184: 40239 | K184: ADF | L184: 194 | P184: =IF(N184="","",SUBTOTAL(103, $N$5:N184)) ->  | Q184: =IF(N184="","",LEN(N184)) -> 
A185: MAP | B185: HP2 | D185: Heat Pump #2 Delay | E185: hp2_delay | F185: R/W | G185: AV | H185: 571 | I185: Holding Register | J185: 40241 | K185: ADF | L185: 195 | P185: =IF(N185="","",SUBTOTAL(103, $N$5:N185)) ->  | Q185: =IF(N185="","",LEN(N185)) -> 
A186: MAP | D186: Mode Switchover Delay | E186: mode_switch_delay | F186: R/W | G186: AV | H186: 581 | I186: Holding Register | J186: 40243 | K186: ADF | L186: 196 | P186: =IF(N186="","",SUBTOTAL(103, $N$5:N186)) -> 
A187: MAP | B187: ECON | D187: Econ. MAT SP | E187: econ_mat_sp | F187: R/W | G187: AV | H187: 600 | I187: Holding Register | J187: 40251 | K187: ADF | L187: 201 | M187: 0 | N187: nviEconMatSp | O187: SNVT_temp_p(105) | P187: =IF(N187="","",SUBTOTAL(103, $N$5:N187)) -> 85 | Q187: =IF(N187="","",LEN(N187)) -> 12
A188: MAP | B188: OADA | D188: OADA PID Output Override | E188: oada_pid_ovrd | F188: R/W | G188: AV | H188: 609 | I188: Holding Register | J188: =J187+2 -> 40253 | K188: ADF | L188: 202 | P188: =IF(N188="","",SUBTOTAL(103, $N$5:N188)) -> 
A189: MAP | B189: RADA | D189: RADA Position | E189: rada_pos | F189: R | G189: AV | H189: 6001 | I189: Input Register | J189: 30143 | K189: ADF | L189: 203 | M189: 0 | N189: nvoRadaPos | O189: SNVT_lev_percent(81) | P189: =IF(N189="","",SUBTOTAL(103, $N$5:N189)) -> 86 | Q189: =IF(N189="","",LEN(N189)) -> 10
A190: MAP | B190: ECWVFD | D190: ECW PID Output Override | E190: ecw_pid_ovrd | F190: R/W | G190: AV | H190: 618 | I190: Holding Register | J190: =J188+2 -> 40255 | K190: ADF | L190: 206 | P190: =IF(N190="","",SUBTOTAL(103, $N$5:N190)) -> 
A191: MAP | B191: ECWVFD | D191: ECW Defrost LSP | E191: ecw_def_lsp | F191: R/W | G191: AV | H191: 619 | I191: Holding Register | J191: =J190+2 -> 40257 | K191: ADF | L191: 207 | P191: =IF(N191="","",SUBTOTAL(103, $N$5:N191)) -> 
A192: MAP | B192: SFMOD | D192: SF PID Output Override | E192: sf_pid_ovrd | F192: R/W | G192: AV | H192: 629 | I192: Holding Register | J192: 40261 | K192: ADF | L192: 211 | P192: =IF(N192="","",SUBTOTAL(103, $N$5:N192)) -> 
A193: MAP | B193: EFMOD | D193: EF PID Output Override | E193: ef_pid_ovrd | F193: R/W | G193: AV | H193: 639 | I193: Holding Register | J193: =J192+2 -> 40263 | K193: ADF | L193: 213 | P193: =IF(N193="","",SUBTOTAL(103, $N$5:N193)) -> 
A194: MAP | B194: CLGVALVE | D194: CWV PID Output Override | E194: cwv_pid_ovrd | F194: R/W | G194: AV | H194: 648 | I194: Holding Register | J194: 40271 | K194: ADF | L194: 216 | P194: =IF(N194="","",SUBTOTAL(103, $N$5:N194)) ->  | Q194: =IF(N194="","",LEN(N194)) -> 
A195: MAP | B195: C1DIG | D195: DIG #1 PID Output Override | E195: dig1_pid_ovrd | F195: R/W | G195: AV | H195: 648 | I195: Holding Register | J195: 40271 | K195: ADF | L195: 216 | P195: =IF(N195="","",SUBTOTAL(103, $N$5:N195)) -> 
A196: MAP | B196: C1VS | D196: VS Comp. #1 PID Output Override | E196: vsc1_pid_ovrd | F196: R/W | G196: AV | H196: 648 | I196: Holding Register | J196: 40271 | K196: ADF | L196: 216 | P196: =IF(N196="","",SUBTOTAL(103, $N$5:N196)) ->  | Q196: =IF(N196="","",LEN(N196)) -> 
A197: MAP | B197: C1DIG | D197: Digital Compressor #1 Percent | E197: dig_c1_pct | F197: R | G197: AV | H197: 6401 | I197: Input Register | J197: =J189+2 -> 30145 | K197: ADF | L197: 217 | M197: 0 | N197: nvoDigC1Pct | O197: SNVT_lev_percent(81) | P197: =IF(N197="","",SUBTOTAL(103, $N$5:N197)) -> 87 | Q197: 11
A198: MAP | B198: C1VS | D198: VS Comp. #1 Percent | E198: vsc1_pct | F198: R | G198: AV | H198: 6401 | I198: Input Register | J198: =J189+2 -> 30145 | K198: ADF | L198: 217 | M198: 0 | N198: nvoVsc1Pct | O198: SNVT_lev_percent(81) | P198: =IF(N198="","",SUBTOTAL(103, $N$5:N198)) -> 88 | Q198: =IF(N198="","",LEN(N198)) -> 10
A199: MAP | B199: C1VS | D199: VS Comp. FP SP | E199: vsc_fp_sp | F199: R/W | G199: AV | H199: 6403 | I199: Holding Register | J199: =J196+2 -> 40273 | K199: ADF | L199: 218 | P199: =IF(N199="","",SUBTOTAL(103, $N$5:N199)) ->  | Q199: =IF(N199="","",LEN(N199)) -> 
A200: MAP | B200: C2DIG | D200: DIG #2 PID Output Override | E200: dig2_pid_ovrd | F200: R/W | G200: AV | H200: 658 | I200: Holding Register | J200: =J199+2 -> 40275 | K200: ADF | L200: 219 | P200: =IF(N200="","",SUBTOTAL(103, $N$5:N200)) ->  | Q200: =IF(N200="","",LEN(N200)) -> 
A201: MAP | B201: C2VS | D201: VS Comp. #2 PID Output Override | E201: vsc2_pid_ovrd | F201: R/W | G201: AV | H201: 658 | I201: Holding Register | J201: 40275 | K201: ADF | L201: 219 | P201: =IF(N201="","",SUBTOTAL(103, $N$5:N201)) ->  | Q201: =IF(N201="","",LEN(N201)) -> 
... 190 more rows

Sheet Abbreviations
D1: Abbreviations
D3: AMS - Air Monitoring Station | F3: EF - Exhaust Fan | K3: OADP - Outside Air Dew Point
D4: APS - Air Pressure Switch | F4: Elec - Electric | K4: OAE - Outside Air Enthalpy
D5: AUX - Auxiliary | F5: EM - Emergency | K5: OA-RH - Outside Air Relitive Humidity
D6: BAS - Building Automation System | F6: Emerg - Emergency | K6: OAT - Outside Air Temperature
D7: C1 - Compressor #1 | F7: EMR - Energy Management Relay | K7: OCC - Occupied
D8: C2 - Compressor #2 | F8: FZT - Water Freeze Thermostat | K8: REV - Reversing
D9: CFI - Clogged Filter Indicator | F9: HGRH - Hot Gas Reheat | K9: SD - Smoke Detector
D10: CLG - Cooling | F10: HLAT - High Leaving Air Temperature | K10: SF - Supply Fan
D11: COMP - Compressor | F11: HT - Heat | K11: SLT - Suction Line Temperature
D12: CS - Current Sensor | F12: HTG - Heating | K12: SP - Set point
D13: Dehum - Dehumidification | F13: LAT - Leaving Air Temperature | K13: S/S - Start / Stop Switch
D14: DIG - Digital Compressor | F14: LDB - Lower Dead Band | K14: UDB - Upper Dead Band
D15: DOM - Delay On Make | F15: LLAT - Low Leaving Air Temerature | K15: USP - Upper Set Point
D16: DPT - Differential Pressure Transmitter | F16: LOW PR.SW.BPT - Low Pressure Switch Bypass Time | K16: VFD - Variable Frequency Drive
D17: ECAT - Entering Coil Air Temperature | F17: LP - Low Pressure | K17: WFS - Water Flow Switch
D18: ECDP - Entering Coil Dew Point | F18: LSP - Lower Set Point | K18: ZAT - Zone Air Temperature
D19: ECE - Entering Coil Enthalpy | F19: MIN - Minimum | K19: ZRH - Zone Air Relitive Humidity
D20: EC-RH - Entering Coil Air Relitive Humidity | F20: MSP - Middle Set Point | K20: Z-RH - Zone Air Relitive Humidity
D21: ECW - Energy Conservation Wheel | F21: OA - Outside Air
D22: NOTE: LonWorks only allows a maximum of 62 points, so only essential points will have been assigned a SNVT Name. Please note that the Addison Multi program was designed to allow for multiple optional configurations and may contain mapping points not used in this unit. AV = Analog Value; BV = Binary Value; ALM = Alarm; MSV = Multi-State Value.
